{"text_format":"1","workbook":"xlsx","n_sheets":4,"sheets":["ЕСЛИПУСТО","формула","ссылка","объединенная"],"not_rendered":{"charts":0,"images":0,"macros":1,"external_links":0,"defined_names":4,"comments":0,"pivot_tables":0},"unopened":[],"bounds":{"document_bytes":16777216,"sheet_cells":100000,"rows_first":2000,"rows_last":500,"rows_between":2000,"halvings":0,"cell_chars":16384,"cell_head_chars":4096},"cells_cut":0,"cells_raw":0,"read":"whole","date_system":"1900"}

{"sheet":"ЕСЛИПУСТО","index":0,"n_rows":134,"n_cols":39,"rows_kept":134,"cut":false,"hidden":false,"merged":[[33,33,34,33],[5,35,6,35],[5,0,6,0],[5,1,6,1],[3,25,3,29],[3,31,3,34],[5,34,6,34],[5,33,6,33],[2,38,25,52],[0,38,0,52],[101,0,102,0],[101,1,102,1],[101,34,102,34],[101,35,102,35],[101,33,102,33],[67,0,68,0],[67,1,68,1],[67,34,68,34],[67,35,68,35],[67,33,68,33],[33,0,34,0],[33,1,34,1],[33,34,34,34],[33,35,34,35]]}
["Учреждение:"]
["Структурное подразделение:"]
[null,null,null,null,null,null,null,null,null,null,"   ",null,null,"   ТАБЕЛЬ",null,null,null,null,null,null,null,null,null,null,null,"Отчетный период",null,null,null,null,null,null,null,null,null,null,null,null,"Sub Prn()\n    Dim i As Long, ar\n    ar = Array(\"A8\", \"A36\", \"A70\", \"A104\")\n    With Sheets(\"ЕСЛИПУСТО\")\n        For i = 0 To UBound(ar)\n            If .Range(ar(i)) <> \"\" Then .PrintOut From:=i + 1, to:=i + 1, Copies:=1, Collate:=True, IgnorePrintAreas:=False\n        Next i\n    End With\nEnd Sub"]
[null,null,null,null," ",null,"          учёта рабочего времени и расчета заработной платы ",null,null,null,null,null,null,null,null,null,null,null,null,null,null,null,null,null,"с",null,null,null,null,null,"по"]
[]
["Фамилия Имя Отчество","долж-ность",null,null,null,null,null,null,null,null,null,"                                            числа месяца",null,null,null,null,null,null,null,null,null,null,null,null,null,null,null,null,null,null,null,null,null,"Вред-ность","Ноч-ных","Празд-ничных","Всего"]
[null,null,1,2,3,4,5,6,7,8,9,10,11,12,13,14,15,16,17,18,19,20,21,22,23,24,25,26,27,28,29,30,31,null,null,null,"часов"]
["Иванов",null,null,null,null,null,null,null,null,null,null,null,null,null,null,null,null,null,null,null,null,null,null,null,null,null,null,null,null,null,null,null,null,null,null,0]
[null,null,null,null,null,null,null,null,null,null,null,null,null,null,null,null,null,null,null,null,null,null,null,null,null,null,null,null,null,null,null,null,null,null,null,0]
[null,null,null,null,null,null,null,null,null,null,null,null,null,null,null,null,null,null,null,null,null,null,null,null,null,null,null,null,null,null,null,null,null,null,null,0]
[null,null,null,null,null,null,null,null,null,null,null,null,null,null,null,null,null,null,null,null,null,null,null,null,null,null,null,null,null,null,null,null,null,null,null,0]
[null,null,null,null,null,null,null,null,null,null,null,null,null,null,null,null,null,null,null,null,null,null,null,null,null,null,null,null,null,null,null,null,null,null,null,0]
[null,null,null,null,null,null,null,null,null,null,null,null,null,null,null,null,null,null,null,null,null,null,null,null,null,null,null,null,null,null,null,null,null,null,null,0]
[null,null,null,null,null,null,null,null,null,null,null,null,null,null,null,null,null,null,null,null,null,null,null,null,null,null,null,null,null,null,null,null,null,null,null,0]
[null,null,null,null,null,null,null,null,null,null,null,null,null,null,null,null,null,null,null,null,null,null,null,null,null,null,null,null,null,null,null,null,null,null,null,0]
[null,null,null,null,null,null,null,null,null,null,null,null,null,null,null,null,null,null,null,null,null,null,null,null,null,null,null,null,null,null,null,null,null,null,null,0]
[null,null,null,null,null,null,null,null,null,null,null,null,null,null,null,null,null,null,null,null,null,null,null,null,null,null,null,null,null,null,null,null,null,null,null,0]
[null,null,null,null,null,null,null,null,null,null,null,null,null,null,null,null,null,null,null,null,null,null,null,null,null,null,null,null,null,null,null,null,null,null,null,0]
[null,null,null,null,null,null,null,null,null,null,null,null,null,null,null,null,null,null,null,null,null,null,null,null,null,null,null,null,null,null,null,null,null,null,null,0]
[null,null,null,null,null,null,null,null,null,null,null,null,null,null,null,null,null,null,null,null,null,null,null,null,null,null,null,null,null,null,null,null,null,null,null,0]
[null,null,null,null,null,null,null,null,null,null,null,null,null,null,null,null,null,null,null,null,null,null,null,null,null,null,null,null,null,null,null,null,null,null,null,0]
[null,null,null,null,null,null,null,null,null,null,null,null,null,null,null,null,null,null,null,null,null,null,null,null,null,null,null,null,null,null,null,null,null,null,null,0]
[null,null,null,null,null,null,null,null,null,null,null,null,null,null,null,null,null,null,null,null,null,null,null,null,null,null,null,null,null,null,null,null,null,null,null,0]
[null,null,null,null,null,null,null,null,null,null,null,null,null,null,null,null,null,null,null,null,null,null,null,null,null,null,null,null,null,null,null,null,null,null,null,0]
[null,null,null,null,null,null,null,null,null,null,null,null,null,null,null,null,null,null,null,null,null,null,null,null,null,null,null,null,null,null,null,null,null,null,null,0]
[null,null,null,null,null,null,null,null,null,null,null,null,null,null,null,null,null,null,null,null,null,null,null,null,null,null,null,null,null,null,null,null,null,null,null,0]
[null,null,null,null,null,null,null,null,null,null,null,null,null,null,null,null,null,null,null,null,null,null,null,null,null,null,null,null,null,null,null,null,null,null,null,0]
[null,null,null,null,null,null,null,null,null,null,null,null,null,null,null,null,null,null,null,null,null,null,null,null,null,null,null,null,null,null,null,null,null,null,null,0]
[null,null,null,null,null,null,null,null,null,null,null,null,null,null,null,null,null,null,null,null,null,null,null,null,null,null,null,null,null,null,null,null,null,null,null,0]
[null,null,null,null,null,null,null,null,null,null,null,null,null,null,null,null,null,null,null,null,null,null,null,null,null,null,null,null,null,null,null,null,null,null,null,0]
[null,null,null,null,null,null,null,null,null,null,null,null,null,null,null,null,null,null,null,null,null,null,null,null,null,null,null,null,null,null,null,null,null,null,null,0]
[]
[{"$f":"IF(A36=\"\",\"Исполнитель____________________\",\"\")","v":""},null,null,null,null,null,null,null,null,null,null,{"$f":"IF(A36=\"\",\"Руководитель учреждения ___________________ ______________<<____>>___________20_____ г.\",\"\")","v":""},null,null,null,null,null,null,null,null,null,null,null,null,null,null,null,null,null,null,null,null,null,null,null,null,1]
["Фамилия Имя Отчество","долж-ность",null,null,null,null,null,null,null,null,null,"                                            числа месяца",null,null,null,null,null,null,null,null,null,null,null,null,null,null,null,null,null,null,null,null,null,"Вред-ность","Ноч-ных","Празд-ничных","Всего"]
[null,null,1,2,3,4,5,6,7,8,9,10,11,12,13,14,15,16,17,18,19,20,21,22,23,24,25,26,27,28,29,30,31,null,null,null,"часов"]
["Петров",null,null,null,null,null,null,null,null,null,null,null,null,null,null,null,null,null,null,null,null,null,null,null,null,null,null,null,null,null,null,null,null,null,null,0]
[null,null,null,null,null,null,null,null,null,null,null,null,null,null,null,null,null,null,null,null,null,null,null,null,null,null,null,null,null,null,null,null,null,null,null,0]
[null,null,null,null,null,null,null,null,null,null,null,null,null,null,null,null,null,null,null,null,null,null,null,null,null,null,null,null,null,null,null,null,null,null,null,0]
[null,null,null,null,null,null,null,null,null,null,null,null,null,null,null,null,null,null,null,null,null,null,null,null,null,null,null,null,null,null,null,null,null,null,null,0]
[null,null,null,null,null,null,null,null,null,null,null,null,null,null,null,null,null,null,null,null,null,null,null,null,null,null,null,null,null,null,null,null,null,null,null,0]
[null,null,null,null,null,null,null,null,null,null,null,null,null,null,null,null,null,null,null,null,null,null,null,null,null,null,null,null,null,null,null,null,null,null,null,0]
[null,null,null,null,null,null,null,null,null,null,null,null,null,null,null,null,null,null,null,null,null,null,null,null,null,null,null,null,null,null,null,null,null,null,null,0]
[null,null,null,null,null,null,null,null,null,null,null,null,null,null,null,null,null,null,null,null,null,null,null,null,null,null,null,null,null,null,null,null,null,null,null,0]
[null,null,null,null,null,null,null,null,null,null,null,null,null,null,null,null,null,null,null,null,null,null,null,null,null,null,null,null,null,null,null,null,null,null,null,0]
[null,null,null,null,null,null,null,null,null,null,null,null,null,null,null,null,null,null,null,null,null,null,null,null,null,null,null,null,null,null,null,null,null,null,null,0]
[null,null,null,null,null,null,null,null,null,null,null,null,null,null,null,null,null,null,null,null,null,null,null,null,null,null,null,null,null,null,null,null,null,null,null,0]
[null,null,null,null,null,null,null,null,null,null,null,null,null,null,null,null,null,null,null,null,null,null,null,null,null,null,null,null,null,null,null,null,null,null,null,0]
[null,null,null,null,null,null,null,null,null,null,null,null,null,null,null,null,null,null,null,null,null,null,null,null,null,null,null,null,null,null,null,null,null,null,null,0]
[null,null,null,null,null,null,null,null,null,null,null,null,null,null,null,null,null,null,null,null,null,null,null,null,null,null,null,null,null,null,null,null,null,null,null,0]
[null,null,null,null,null,null,null,null,null,null,null,null,null,null,null,null,null,null,null,null,null,null,null,null,null,null,null,null,null,null,null,null,null,null,null,0]
[null,null,null,null,null,null,null,null,null,null,null,null,null,null,null,null,null,null,null,null,null,null,null,null,null,null,null,null,null,null,null,null,null,null,null,0]
[null,null,null,null,null,null,null,null,null,null,null,null,null,null,null,null,null,null,null,null,null,null,null,null,null,null,null,null,null,null,null,null,null,null,null,0]
[null,null,null,null,null,null,null,null,null,null,null,null,null,null,null,null,null,null,null,null,null,null,null,null,null,null,null,null,null,null,null,null,null,null,null,0]
[null,null,null,null,null,null,null,null,null,null,null,null,null,null,null,null,null,null,null,null,null,null,null,null,null,null,null,null,null,null,null,null,null,null,null,0]
[null,null,null,null,null,null,null,null,null,null,null,null,null,null,null,null,null,null,null,null,null,null,null,null,null,null,null,null,null,null,null,null,null,null,null,0]
[null,null,null,null,null,null,null,null,null,null,null,null,null,null,null,null,null,null,null,null,null,null,null,null,null,null,null,null,null,null,null,null,null,null,null,0]
[null,null,null,null,null,null,null,null,null,null,null,null,null,null,null,null,null,null,null,null,null,null,null,null,null,null,null,null,null,null,null,null,null,null,null,0]
[null,null,null,null,null,null,null,null,null,null,null,null,null,null,null,null,null,null,null,null,null,null,null,null,null,null,null,null,null,null,null,null,null,null,null,0]
[null,null,null,null,null,null,null,null,null,null,null,null,null,null,null,null,null,null,null,null,null,null,null,null,null,null,null,null,null,null,null,null,null,null,null,0]
[null,null,null,null,null,null,null,null,null,null,null,null,null,null,null,null,null,null,null,null,null,null,null,null,null,null,null,null,null,null,null,null,null,null,null,0]
[null,null,null,null,null,null,null,null,null,null,null,null,null,null,null,null,null,null,null,null,null,null,null,null,null,null,null,null,null,null,null,null,null,null,null,0]
[null,null,null,null,null,null,null,null,null,null,null,null,null,null,null,null,null,null,null,null,null,null,null,null,null,null,null,null,null,null,null,null,null,null,null,0]
[null,null,null,null,null,null,null,null,null,null,null,null,null,null,null,null,null,null,null,null,null,null,null,null,null,null,null,null,null,null,null,null,null,null,null,0]
[null,null,null,null,null,null,null,null,null,null,null,null,null,null,null,null,null,null,null,null,null,null,null,null,null,null,null,null,null,null,null,null,null,null,null,0]
[null,null,null,null,null,null,null,null,null,null,null,null,null,null,null,null,null,null,null,null,null,null,null,null,null,null,null,null,null,null,null,null,null,null,null,0]
[null,null,null,null,null,null,null,null,null,null,null,null,null,null,null,null,null,null,null,null,null,null,null,null,null,null,null,null,null,null,null,null,null,null,null,null,2]
[{"$f":"IF(A70=\"\",\"Исполнитель_______________________\",\"\")","v":""},null,null,null,null,null,null,null,null,null,null,{"$f":"IF(A70=\"\",\"Руководитель учреждения ___________________ ______________<<____>>___________20_____ г.\",\"\")","v":""}]
["Фамилия Имя Отчество","долж-ность",null,null,null,null,null,null,null,null,null,"                                            числа месяца",null,null,null,null,null,null,null,null,null,null,null,null,null,null,null,null,null,null,null,null,null,"Вред-ность","Ноч-ных","Празд-ничных","Всего"]
[null,null,1,2,3,4,5,6,7,8,9,10,11,12,13,14,15,16,17,18,19,20,21,22,23,24,25,26,27,28,29,30,31,null,null,null,"часов"]
["ппп",null,null,null,null,null,null,null,null,null,null,null,null,null,null,null,null,null,null,null,null,null,null,null,null,null,null,null,null,null,null,null,null,null,null,0]
[null,null,null,null,null,null,null,null,null,null,null,null,null,null,null,null,null,null,null,null,null,null,null,null,null,null,null,null,null,null,null,null,null,null,null,0]
[null,null,null,null,null,null,null,null,null,null,null,null,null,null,null,null,null,null,null,null,null,null,null,null,null,null,null,null,null,null,null,null,null,null,null,0]
[null,null,null,null,null,null,null,null,null,null,null,null,null,null,null,null,null,null,null,null,null,null,null,null,null,null,null,null,null,null,null,null,null,null,null,0]
[null,null,null,null,null,null,null,null,null,null,null,null,null,null,null,null,null,null,null,null,null,null,null,null,null,null,null,null,null,null,null,null,null,null,null,0]
[null,null,null,null,null,null,null,null,null,null,null,null,null,null,null,null,null,null,null,null,null,null,null,null,null,null,null,null,null,null,null,null,null,null,null,0]
[null,null,null,null,null,null,null,null,null,null,null,null,null,null,null,null,null,null,null,null,null,null,null,null,null,null,null,null,null,null,null,null,null,null,null,0]
[null,null,null,null,null,null,null,null,null,null,null,null,null,null,null,null,null,null,null,null,null,null,null,null,null,null,null,null,null,null,null,null,null,null,null,0]
[null,null,null,null,null,null,null,null,null,null,null,null,null,null,null,null,null,null,null,null,null,null,null,null,null,null,null,null,null,null,null,null,null,null,null,0]
[null,null,null,null,null,null,null,null,null,null,null,null,null,null,null,null,null,null,null,null,null,null,null,null,null,null,null,null,null,null,null,null,null,null,null,0]
[null,null,null,null,null,null,null,null,null,null,null,null,null,null,null,null,null,null,null,null,null,null,null,null,null,null,null,null,null,null,null,null,null,null,null,0]
[null,null,null,null,null,null,null,null,null,null,null,null,null,null,null,null,null,null,null,null,null,null,null,null,null,null,null,null,null,null,null,null,null,null,null,0]
[null,null,null,null,null,null,null,null,null,null,null,null,null,null,null,null,null,null,null,null,null,null,null,null,null,null,null,null,null,null,null,null,null,null,null,0]
[null,null,null,null,null,null,null,null,null,null,null,null,null,null,null,null,null,null,null,null,null,null,null,null,null,null,null,null,null,null,null,null,null,null,null,0]
[null,null,null,null,null,null,null,null,null,null,null,null,null,null,null,null,null,null,null,null,null,null,null,null,null,null,null,null,null,null,null,null,null,null,null,0]
[null,null,null,null,null,null,null,null,null,null,null,null,null,null,null,null,null,null,null,null,null,null,null,null,null,null,null,null,null,null,null,null,null,null,null,0]
[null,null,null,null,null,null,null,null,null,null,null,null,null,null,null,null,null,null,null,null,null,null,null,null,null,null,null,null,null,null,null,null,null,null,null,0]
[null,null,null,null,null,null,null,null,null,null,null,null,null,null,null,null,null,null,null,null,null,null,null,null,null,null,null,null,null,null,null,null,null,null,null,0]
[null,null,null,null,null,null,null,null,null,null,null,null,null,null,null,null,null,null,null,null,null,null,null,null,null,null,null,null,null,null,null,null,null,null,null,0]
[null,null,null,null,null,null,null,null,null,null,null,null,null,null,null,null,null,null,null,null,null,null,null,null,null,null,null,null,null,null,null,null,null,null,null,0]
[null,null,null,null,null,null,null,null,null,null,null,null,null,null,null,null,null,null,null,null,null,null,null,null,null,null,null,null,null,null,null,null,null,null,null,0]
[null,null,null,null,null,null,null,null,null,null,null,null,null,null,null,null,null,null,null,null,null,null,null,null,null,null,null,null,null,null,null,null,null,null,null,0]
[null,null,null,null,null,null,null,null,null,null,null,null,null,null,null,null,null,null,null,null,null,null,null,null,null,null,null,null,null,null,null,null,null,null,null,0]
[null,null,null,null,null,null,null,null,null,null,null,null,null,null,null,null,null,null,null,null,null,null,null,null,null,null,null,null,null,null,null,null,null,null,null,0]
[null,null,null,null,null,null,null,null,null,null,null,null,null,null,null,null,null,null,null,null,null,null,null,null,null,null,null,null,null,null,null,null,null,null,null,0]
[null,null,null,null,null,null,null,null,null,null,null,null,null,null,null,null,null,null,null,null,null,null,null,null,null,null,null,null,null,null,null,null,null,null,null,0]
[null,null,null,null,null,null,null,null,null,null,null,null,null,null,null,null,null,null,null,null,null,null,null,null,null,null,null,null,null,null,null,null,null,null,null,0]
[null,null,null,null,null,null,null,null,null,null,null,null,null,null,null,null,null,null,null,null,null,null,null,null,null,null,null,null,null,null,null,null,null,null,null,0]
[null,null,null,null,null,null,null,null,null,null,null,null,null,null,null,null,null,null,null,null,null,null,null,null,null,null,null,null,null,null,null,null,null,null,null,0]
[null,null,null,null,null,null,null,null,null,null,null,null,null,null,null,null,null,null,null,null,null,null,null,null,null,null,null,null,null,null,null,null,null,null,null,0]
[null,null,null,null,null,null,null,null,null,null,null,null,null,null,null,null,null,null,null,null,null,null,null,null,null,null,null,null,null,null,null,null,null,null,null,null,3]
[{"$f":"IF(A104=\"\",\"Исполнитель_______________________\",\"\")","v":""},null,null,null,null,null,null,null,null,null,null,{"$f":"IF(A104=\"\",\"Руководитель учреждения ___________________ ______________<<____>>___________20_____ г.\",\"\")","v":""}]
["Фамилия Имя Отчество","долж-ность",null,null,null,null,null,null,null,null,null,"                                            числа месяца",null,null,null,null,null,null,null,null,null,null,null,null,null,null,null,null,null,null,null,null,null,"Вред-ность","Ноч-ных","Празд-ничных","Всего"]
[null,null,1,2,3,4,5,6,7,8,9,10,11,12,13,14,15,16,17,18,19,20,21,22,23,24,25,26,27,28,29,30,31,null,null,null,"часов"]
["ллл",null,null,null,null,null,null,null,null,null,null,null,null,null,null,null,null,null,null,null,null,null,null,null,null,null,null,null,null,null,null,null,null,null,null,0]
[null,null,null,null,null,null,null,null,null,null,null,null,null,null,null,null,null,null,null,null,null,null,null,null,null,null,null,null,null,null,null,null,null,null,null,0]
[null,null,null,null,null,null,null,null,null,null,null,null,null,null,null,null,null,null,null,null,null,null,null,null,null,null,null,null,null,null,null,null,null,null,null,0]
[null,null,null,null,null,null,null,null,null,null,null,null,null,null,null,null,null,null,null,null,null,null,null,null,null,null,null,null,null,null,null,null,null,null,null,0]
[null,null,null,null,null,null,null,null,null,null,null,null,null,null,null,null,null,null,null,null,null,null,null,null,null,null,null,null,null,null,null,null,null,null,null,0]
[null,null,null,null,null,null,null,null,null,null,null,null,null,null,null,null,null,null,null,null,null,null,null,null,null,null,null,null,null,null,null,null,null,null,null,0]
[null,null,null,null,null,null,null,null,null,null,null,null,null,null,null,null,null,null,null,null,null,null,null,null,null,null,null,null,null,null,null,null,null,null,null,0]
[null,null,null,null,null,null,null,null,null,null,null,null,null,null,null,null,null,null,null,null,null,null,null,null,null,null,null,null,null,null,null,null,null,null,null,0]
[null,null,null,null,null,null,null,null,null,null,null,null,null,null,null,null,null,null,null,null,null,null,null,null,null,null,null,null,null,null,null,null,null,null,null,0]
[null,null,null,null,null,null,null,null,null,null,null,null,null,null,null,null,null,null,null,null,null,null,null,null,null,null,null,null,null,null,null,null,null,null,null,0]
[null,null,null,null,null,null,null,null,null,null,null,null,null,null,null,null,null,null,null,null,null,null,null,null,null,null,null,null,null,null,null,null,null,null,null,0]
[null,null,null,null,null,null,null,null,null,null,null,null,null,null,null,null,null,null,null,null,null,null,null,null,null,null,null,null,null,null,null,null,null,null,null,0]
[null,null,null,null,null,null,null,null,null,null,null,null,null,null,null,null,null,null,null,null,null,null,null,null,null,null,null,null,null,null,null,null,null,null,null,0]
[null,null,null,null,null,null,null,null,null,null,null,null,null,null,null,null,null,null,null,null,null,null,null,null,null,null,null,null,null,null,null,null,null,null,null,0]
[null,null,null,null,null,null,null,null,null,null,null,null,null,null,null,null,null,null,null,null,null,null,null,null,null,null,null,null,null,null,null,null,null,null,null,0]
[null,null,null,null,null,null,null,null,null,null,null,null,null,null,null,null,null,null,null,null,null,null,null,null,null,null,null,null,null,null,null,null,null,null,null,0]
[null,null,null,null,null,null,null,null,null,null,null,null,null,null,null,null,null,null,null,null,null,null,null,null,null,null,null,null,null,null,null,null,null,null,null,0]
[null,null,null,null,null,null,null,null,null,null,null,null,null,null,null,null,null,null,null,null,null,null,null,null,null,null,null,null,null,null,null,null,null,null,null,0]
[null,null,null,null,null,null,null,null,null,null,null,null,null,null,null,null,null,null,null,null,null,null,null,null,null,null,null,null,null,null,null,null,null,null,null,0]
[null,null,null,null,null,null,null,null,null,null,null,null,null,null,null,null,null,null,null,null,null,null,null,null,null,null,null,null,null,null,null,null,null,null,null,0]
[null,null,null,null,null,null,null,null,null,null,null,null,null,null,null,null,null,null,null,null,null,null,null,null,null,null,null,null,null,null,null,null,null,null,null,0]
[null,null,null,null,null,null,null,null,null,null,null,null,null,null,null,null,null,null,null,null,null,null,null,null,null,null,null,null,null,null,null,null,null,null,null,0]
[null,null,null,null,null,null,null,null,null,null,null,null,null,null,null,null,null,null,null,null,null,null,null,null,null,null,null,null,null,null,null,null,null,null,null,0]
[null,null,null,null,null,null,null,null,null,null,null,null,null,null,null,null,null,null,null,null,null,null,null,null,null,null,null,null,null,null,null,null,null,null,null,0]
[null,null,null,null,null,null,null,null,null,null,null,null,null,null,null,null,null,null,null,null,null,null,null,null,null,null,null,null,null,null,null,null,null,null,null,0]
[null,null,null,null,null,null,null,null,null,null,null,null,null,null,null,null,null,null,null,null,null,null,null,null,null,null,null,null,null,null,null,null,null,null,null,0]
[null,null,null,null,null,null,null,null,null,null,null,null,null,null,null,null,null,null,null,null,null,null,null,null,null,null,null,null,null,null,null,null,null,null,null,0]
[null,null,null,null,null,null,null,null,null,null,null,null,null,null,null,null,null,null,null,null,null,null,null,null,null,null,null,null,null,null,null,null,null,null,null,0]
[null,null,null,null,null,null,null,null,null,null,null,null,null,null,null,null,null,null,null,null,null,null,null,null,null,null,null,null,null,null,null,null,null,null,null,0]
[null,null,null,null,null,null,null,null,null,null,null,null,null,null,null,null,null,null,null,null,null,null,null,null,null,null,null,null,null,null,null,null,null,null,null,0]
[null,null,null,null,null,null,null,null,null,null,null,null,null,null,null,null,null,null,null,null,null,null,null,null,null,null,null,null,null,null,null,null,null,null,null,null,4]

{"sheet":"формула","index":1,"n_rows":133,"n_cols":39,"rows_kept":133,"cut":false,"hidden":false,"merged":[[67,0,68,0],[67,1,68,1],[67,33,68,33],[67,34,68,34],[67,35,68,35],[101,0,102,0],[101,1,102,1],[101,33,102,33],[101,34,102,34],[101,35,102,35],[33,0,34,0],[33,1,34,1],[33,33,34,33],[33,34,34,34],[33,35,34,35],[2,38,25,52],[3,25,3,29],[3,31,3,34],[5,0,6,0],[5,1,6,1],[5,33,6,33],[5,34,6,34],[5,35,6,35]]}
["Учреждение:"]
["Структурное подразделение:"]
[null,null,null,null,null,null,null,null,null,null,"   ",null,null,"   ТАБЕЛЬ",null,null,null,null,null,null,null,null,null,null,null,"Отчетный период",null,null,null,null,null,null,null,null,null,null,null,null,"Sub Prn()\n    \nEnd Sub"]
[null,null,null,null," ",null,"          учёта рабочего времени и расчета заработной платы ",null,null,null,null,null,null,null,null,null,null,null,null,null,null,null,null,null,"с",null,null,null,null,null,"по"]
[]
["№ П/П","долж-ность",null,null,null,null,null,null,null,null,null,"                                            числа месяца",null,null,null,null,null,null,null,null,null,null,null,null,null,null,null,null,null,null,null,null,null,"Вред-ность","Ноч-ных","Празд-ничных","Всего"]
[null,null,1,2,3,4,5,6,7,8,9,10,11,12,13,14,15,16,17,18,19,20,21,22,23,24,25,26,27,28,29,30,31,null,null,null,"часов"]
[{"$f":"IF($B8=\"\",\"\",MAX($D$1:D1)+1)","v":1},"аа"]
[{"$f":"IF($B9=\"\",\"\",MAX($A$8:A8)+1)","v":""}]
[{"$f":"IF($B10=\"\",\"\",MAX($A$8:A9)+1)","v":""}]
[{"$f":"IF($B11=\"\",\"\",MAX($A$8:A10)+1)","v":""}]
[{"$f":"IF($B12=\"\",\"\",MAX($A$8:A11)+1)","v":""}]
[{"$f":"IF($B13=\"\",\"\",MAX($A$8:A12)+1)","v":""}]
[{"$f":"IF($B14=\"\",\"\",MAX($A$8:A13)+1)","v":""}]
[{"$f":"IF($B15=\"\",\"\",MAX($A$8:A14)+1)","v":""}]
[{"$f":"IF($B16=\"\",\"\",MAX($A$8:A15)+1)","v":""}]
[{"$f":"IF($B17=\"\",\"\",MAX($A$8:A16)+1)","v":""}]
[{"$f":"IF($B18=\"\",\"\",MAX($A$8:A17)+1)","v":""}]
[{"$f":"IF($B19=\"\",\"\",MAX($A$8:A18)+1)","v":""}]
[{"$f":"IF($B20=\"\",\"\",MAX($A$8:A19)+1)","v":""}]
[{"$f":"IF($B21=\"\",\"\",MAX($A$8:A20)+1)","v":""}]
[{"$f":"IF($B22=\"\",\"\",MAX($A$8:A21)+1)","v":""}]
[{"$f":"IF($B23=\"\",\"\",MAX($A$8:A22)+1)","v":""}]
[{"$f":"IF($B24=\"\",\"\",MAX($A$8:A23)+1)","v":""}]
[{"$f":"IF($B25=\"\",\"\",MAX($A$8:A24)+1)","v":""}]
[{"$f":"IF($B26=\"\",\"\",MAX($A$8:A25)+1)","v":""}]
[{"$f":"IF($B27=\"\",\"\",MAX($A$8:A26)+1)","v":""}]
[{"$f":"IF($B28=\"\",\"\",MAX($A$8:A27)+1)","v":""}]
[{"$f":"IF($B29=\"\",\"\",MAX($A$8:A28)+1)","v":""}]
[{"$f":"IF($B30=\"\",\"\",MAX($A$8:A29)+1)","v":""}]
[{"$f":"IF($B31=\"\",\"\",MAX($A$8:A30)+1)","v":""}]
[]
[{"$f":"IF(A36=\"\",\"Исполнитель____________________\",\"\")","v":""}]
["№ П/П","долж-ность"]
[]
[{"$f":"IF($B36=\"\",\"\",MAX($A$34:A34)+1)","v":1},"лл"]
[{"$f":"IF($B37=\"\",\"\",MAX($A$34:A35)+1)","v":""}]
[{"$f":"IF($B38=\"\",\"\",MAX($A$34:A36)+1)","v":""}]
[{"$f":"IF($B39=\"\",\"\",MAX($A$34:A37)+1)","v":""}]
[{"$f":"IF($B40=\"\",\"\",MAX($A$34:A38)+1)","v":""}]
[{"$f":"IF($B41=\"\",\"\",MAX($A$34:A39)+1)","v":""}]
[{"$f":"IF($B42=\"\",\"\",MAX($A$34:A40)+1)","v":""}]
[{"$f":"IF($B43=\"\",\"\",MAX($A$34:A41)+1)","v":""}]
[{"$f":"IF($B44=\"\",\"\",MAX($A$34:A42)+1)","v":""}]
[{"$f":"IF($B45=\"\",\"\",MAX($A$34:A43)+1)","v":""}]
[{"$f":"IF($B46=\"\",\"\",MAX($A$34:A44)+1)","v":""}]
[{"$f":"IF($B47=\"\",\"\",MAX($A$34:A45)+1)","v":""}]
[{"$f":"IF($B48=\"\",\"\",MAX($A$34:A46)+1)","v":""}]
[{"$f":"IF($B49=\"\",\"\",MAX($A$34:A47)+1)","v":""}]
[{"$f":"IF($B50=\"\",\"\",MAX($A$34:A48)+1)","v":""}]
[{"$f":"IF($B51=\"\",\"\",MAX($A$34:A49)+1)","v":""}]
[{"$f":"IF($B52=\"\",\"\",MAX($A$34:A50)+1)","v":""}]
[{"$f":"IF($B53=\"\",\"\",MAX($A$34:A51)+1)","v":""}]
[{"$f":"IF($B54=\"\",\"\",MAX($A$34:A52)+1)","v":""}]
[{"$f":"IF($B55=\"\",\"\",MAX($A$34:A53)+1)","v":""}]
[{"$f":"IF($B56=\"\",\"\",MAX($A$34:A54)+1)","v":""}]
[{"$f":"IF($B57=\"\",\"\",MAX($A$34:A55)+1)","v":""}]
[{"$f":"IF($B58=\"\",\"\",MAX($A$34:A56)+1)","v":""}]
[{"$f":"IF($B59=\"\",\"\",MAX($A$34:A57)+1)","v":""}]
[{"$f":"IF($B60=\"\",\"\",MAX($A$34:A58)+1)","v":""}]
[{"$f":"IF($B61=\"\",\"\",MAX($A$34:A59)+1)","v":""}]
[{"$f":"IF($B62=\"\",\"\",MAX($A$34:A60)+1)","v":""}]
[{"$f":"IF($B63=\"\",\"\",MAX($A$34:A61)+1)","v":""}]
[{"$f":"IF($B64=\"\",\"\",MAX($A$34:A62)+1)","v":""}]
[{"$f":"IF($B65=\"\",\"\",MAX($A$34:A63)+1)","v":""}]
[]
[{"$f":"IF(A70=\"\",\"Исполнитель_______________________\",\"\")","v":"Исполнитель_______________________"}]
["№ П/П","долж-ность"]
[]
[{"$f":"IF($B70=\"\",\"\",MAX($A$68:A68)+1)","v":""}]
[{"$f":"IF($B71=\"\",\"\",MAX($A$70:A70)+1)","v":""}]
[{"$f":"IF($B72=\"\",\"\",MAX($A$70:A71)+1)","v":""}]
[{"$f":"IF($B73=\"\",\"\",MAX($A$70:A72)+1)","v":""}]
[{"$f":"IF($B74=\"\",\"\",MAX($A$70:A73)+1)","v":""}]
[{"$f":"IF($B75=\"\",\"\",MAX($A$70:A74)+1)","v":""}]
[{"$f":"IF($B76=\"\",\"\",MAX($A$70:A75)+1)","v":""}]
[{"$f":"IF($B77=\"\",\"\",MAX($A$70:A76)+1)","v":""}]
[{"$f":"IF($B78=\"\",\"\",MAX($A$70:A77)+1)","v":""}]
[{"$f":"IF($B79=\"\",\"\",MAX($A$70:A78)+1)","v":""}]
[{"$f":"IF($B80=\"\",\"\",MAX($A$70:A79)+1)","v":""}]
[{"$f":"IF($B81=\"\",\"\",MAX($A$70:A80)+1)","v":""}]
[{"$f":"IF($B82=\"\",\"\",MAX($A$70:A81)+1)","v":""}]
[{"$f":"IF($B83=\"\",\"\",MAX($A$70:A82)+1)","v":""}]
[{"$f":"IF($B84=\"\",\"\",MAX($A$70:A83)+1)","v":""}]
[{"$f":"IF($B85=\"\",\"\",MAX($A$70:A84)+1)","v":""}]
[{"$f":"IF($B86=\"\",\"\",MAX($A$70:A85)+1)","v":""}]
[{"$f":"IF($B87=\"\",\"\",MAX($A$70:A86)+1)","v":""}]
[{"$f":"IF($B88=\"\",\"\",MAX($A$70:A87)+1)","v":""}]
[{"$f":"IF($B89=\"\",\"\",MAX($A$70:A88)+1)","v":""}]
[{"$f":"IF($B90=\"\",\"\",MAX($A$70:A89)+1)","v":""}]
[{"$f":"IF($B91=\"\",\"\",MAX($A$70:A90)+1)","v":""}]
[{"$f":"IF($B92=\"\",\"\",MAX($A$70:A91)+1)","v":""}]
[{"$f":"IF($B93=\"\",\"\",MAX($A$70:A92)+1)","v":""}]
[{"$f":"IF($B94=\"\",\"\",MAX($A$70:A93)+1)","v":""}]
[{"$f":"IF($B95=\"\",\"\",MAX($A$70:A94)+1)","v":""}]
[{"$f":"IF($B96=\"\",\"\",MAX($A$70:A95)+1)","v":""}]
[{"$f":"IF($B97=\"\",\"\",MAX($A$70:A96)+1)","v":""}]
[{"$f":"IF($B98=\"\",\"\",MAX($A$70:A97)+1)","v":""}]
[{"$f":"IF($B99=\"\",\"\",MAX($A$70:A98)+1)","v":""}]
[]
[{"$f":"IF(A104=\"\",\"Исполнитель_______________________\",\"\")","v":""}]
["№ П/П","долж-ность"]
[null,null,1,2]
[{"$f":"IF($B104=\"\",\"\",MAX($A$102:A102)+1)","v":1},"лл"]
[{"$f":"IF($B105=\"\",\"\",MAX($A$104:A104)+1)","v":""}]
[{"$f":"IF($B106=\"\",\"\",MAX($A$104:A105)+1)","v":""}]
[{"$f":"IF($B107=\"\",\"\",MAX($A$104:A106)+1)","v":""}]
[{"$f":"IF($B108=\"\",\"\",MAX($A$104:A107)+1)","v":""}]
[{"$f":"IF($B109=\"\",\"\",MAX($A$104:A108)+1)","v":""}]
[{"$f":"IF($B110=\"\",\"\",MAX($A$104:A109)+1)","v":""}]
[{"$f":"IF($B111=\"\",\"\",MAX($A$104:A110)+1)","v":""}]
[{"$f":"IF($B112=\"\",\"\",MAX($A$104:A111)+1)","v":""}]
[{"$f":"IF($B113=\"\",\"\",MAX($A$104:A112)+1)","v":""}]
[{"$f":"IF($B114=\"\",\"\",MAX($A$104:A113)+1)","v":""}]
[{"$f":"IF($B115=\"\",\"\",MAX($A$104:A114)+1)","v":""}]
[{"$f":"IF($B116=\"\",\"\",MAX($A$104:A115)+1)","v":""}]
[{"$f":"IF($B117=\"\",\"\",MAX($A$104:A116)+1)","v":""}]
[{"$f":"IF($B118=\"\",\"\",MAX($A$104:A117)+1)","v":""}]
[{"$f":"IF($B119=\"\",\"\",MAX($A$104:A118)+1)","v":""}]
[{"$f":"IF($B120=\"\",\"\",MAX($A$104:A119)+1)","v":""}]
[{"$f":"IF($B121=\"\",\"\",MAX($A$104:A120)+1)","v":""}]
[{"$f":"IF($B122=\"\",\"\",MAX($A$104:A121)+1)","v":""}]
[{"$f":"IF($B123=\"\",\"\",MAX($A$104:A122)+1)","v":""}]
[{"$f":"IF($B124=\"\",\"\",MAX($A$104:A123)+1)","v":""}]
[{"$f":"IF($B125=\"\",\"\",MAX($A$104:A124)+1)","v":""}]
[{"$f":"IF($B126=\"\",\"\",MAX($A$104:A125)+1)","v":""}]
[{"$f":"IF($B127=\"\",\"\",MAX($A$104:A126)+1)","v":""}]
[{"$f":"IF($B128=\"\",\"\",MAX($A$104:A127)+1)","v":""}]
[{"$f":"IF($B129=\"\",\"\",MAX($A$104:A128)+1)","v":""}]
[{"$f":"IF($B130=\"\",\"\",MAX($A$104:A129)+1)","v":""}]
[{"$f":"IF($B131=\"\",\"\",MAX($A$104:A130)+1)","v":""}]
[{"$f":"IF($B132=\"\",\"\",MAX($A$104:A131)+1)","v":""}]
[{"$f":"IF($B133=\"\",\"\",MAX($A$104:A132)+1)","v":""}]

{"sheet":"ссылка","index":2,"n_rows":134,"n_cols":39,"rows_kept":134,"cut":false,"hidden":false,"merged":[[5,33,6,33],[5,34,6,34],[101,0,102,0],[101,1,102,1],[101,33,102,33],[101,34,102,34],[5,1,6,1],[101,35,102,35],[2,38,25,52],[67,0,68,0],[67,1,68,1],[67,33,68,33],[67,34,68,34],[67,35,68,35],[5,35,6,35],[33,0,34,0],[33,1,34,1],[33,33,34,33],[33,34,34,34],[33,35,34,35],[3,25,3,29],[3,31,3,34],[5,0,6,0]]}
["Учреждение:"]
["Структурное подразделение:"]
[null,null,null,null,null,null,null,null,null,null,"   ",null,null,"   ТАБЕЛЬ",null,null,null,null,null,null,null,null,null,null,null,"Отчетный период",null,null,null,null,null,null,null,null,null,null,null,null,"Sub Prn()\n    \nEnd Sub"]
[null,null,null,null," ",null,"          учёта рабочего времени и расчета заработной платы ",null,null,null,null,null,null,null,null,null,null,null,null,null,null,null,null,null,"с",null,null,null,null,null,"по"]
[]
["Фамилия Имя Отчество","долж-ность",null,null,null,null,null,null,null,null,null,"                                            числа месяца",null,null,null,null,null,null,null,null,null,null,null,null,null,null,null,null,null,null,null,null,null,"Вред-ность","Ноч-ных","Празд-ничных","Всего"]
[null,null,1,2,3,4,5,6,7,8,9,10,11,12,13,14,15,16,17,18,19,20,21,22,23,24,25,26,27,28,29,30,31,null,null,null,"часов"]
[{"$f":"ЕСЛИПУСТО!A8","v":"Иванов"},{"$f":"ЕСЛИПУСТО!B8","v":0},null,null,null,null,null,null,null,null,null,null,null,null,null,null,null,null,null,null,null,null,null,null,null,null,null,null,null,null,null,null,null,null,null,0]
[{"$f":"ЕСЛИПУСТО!A9","v":0},{"$f":"ЕСЛИПУСТО!B9","v":0},null,null,null,null,null,null,null,null,null,null,null,null,null,null,null,null,null,null,null,null,null,null,null,null,null,null,null,null,null,null,null,null,null,0]
[{"$f":"ЕСЛИПУСТО!A10","v":0},{"$f":"ЕСЛИПУСТО!B10","v":0},null,null,null,null,null,null,null,null,null,null,null,null,null,null,null,null,null,null,null,null,null,null,null,null,null,null,null,null,null,null,null,null,null,0]
[{"$f":"ЕСЛИПУСТО!A11","v":0},{"$f":"ЕСЛИПУСТО!B11","v":0},null,null,null,null,null,null,null,null,null,null,null,null,null,null,null,null,null,null,null,null,null,null,null,null,null,null,null,null,null,null,null,null,null,0]
[{"$f":"ЕСЛИПУСТО!A12","v":0},{"$f":"ЕСЛИПУСТО!B12","v":0},null,null,null,null,null,null,null,null,null,null,null,null,null,null,null,null,null,null,null,null,null,null,null,null,null,null,null,null,null,null,null,null,null,0]
[{"$f":"ЕСЛИПУСТО!A13","v":0},{"$f":"ЕСЛИПУСТО!B13","v":0},null,null,null,null,null,null,null,null,null,null,null,null,null,null,null,null,null,null,null,null,null,null,null,null,null,null,null,null,null,null,null,null,null,0]
[{"$f":"ЕСЛИПУСТО!A14","v":0},{"$f":"ЕСЛИПУСТО!B14","v":0},null,null,null,null,null,null,null,null,null,null,null,null,null,null,null,null,null,null,null,null,null,null,null,null,null,null,null,null,null,null,null,null,null,0]
[{"$f":"ЕСЛИПУСТО!A15","v":0},{"$f":"ЕСЛИПУСТО!B15","v":0},null,null,null,null,null,null,null,null,null,null,null,null,null,null,null,null,null,null,null,null,null,null,null,null,null,null,null,null,null,null,null,null,null,0]
[{"$f":"ЕСЛИПУСТО!A16","v":0},{"$f":"ЕСЛИПУСТО!B16","v":0},null,null,null,null,null,null,null,null,null,null,null,null,null,null,null,null,null,null,null,null,null,null,null,null,null,null,null,null,null,null,null,null,null,0]
[{"$f":"ЕСЛИПУСТО!A17","v":0},{"$f":"ЕСЛИПУСТО!B17","v":0},null,null,null,null,null,null,null,null,null,null,null,null,null,null,null,null,null,null,null,null,null,null,null,null,null,null,null,null,null,null,null,null,null,0]
[{"$f":"ЕСЛИПУСТО!A18","v":0},{"$f":"ЕСЛИПУСТО!B18","v":0},null,null,null,null,null,null,null,null,null,null,null,null,null,null,null,null,null,null,null,null,null,null,null,null,null,null,null,null,null,null,null,null,null,0]
[{"$f":"ЕСЛИПУСТО!A19","v":0},{"$f":"ЕСЛИПУСТО!B19","v":0},null,null,null,null,null,null,null,null,null,null,null,null,null,null,null,null,null,null,null,null,null,null,null,null,null,null,null,null,null,null,null,null,null,0]
[{"$f":"ЕСЛИПУСТО!A20","v":0},{"$f":"ЕСЛИПУСТО!B20","v":0},null,null,null,null,null,null,null,null,null,null,null,null,null,null,null,null,null,null,null,null,null,null,null,null,null,null,null,null,null,null,null,null,null,0]
[{"$f":"ЕСЛИПУСТО!A21","v":0},{"$f":"ЕСЛИПУСТО!B21","v":0},null,null,null,null,null,null,null,null,null,null,null,null,null,null,null,null,null,null,null,null,null,null,null,null,null,null,null,null,null,null,null,null,null,0]
[{"$f":"ЕСЛИПУСТО!A22","v":0},{"$f":"ЕСЛИПУСТО!B22","v":0},null,null,null,null,null,null,null,null,null,null,null,null,null,null,null,null,null,null,null,null,null,null,null,null,null,null,null,null,null,null,null,null,null,0]
[{"$f":"ЕСЛИПУСТО!A23","v":0},{"$f":"ЕСЛИПУСТО!B23","v":0},null,null,null,null,null,null,null,null,null,null,null,null,null,null,null,null,null,null,null,null,null,null,null,null,null,null,null,null,null,null,null,null,null,0]
[{"$f":"ЕСЛИПУСТО!A24","v":0},{"$f":"ЕСЛИПУСТО!B24","v":0},null,null,null,null,null,null,null,null,null,null,null,null,null,null,null,null,null,null,null,null,null,null,null,null,null,null,null,null,null,null,null,null,null,0]
[{"$f":"ЕСЛИПУСТО!A25","v":0},{"$f":"ЕСЛИПУСТО!B25","v":0},null,null,null,null,null,null,null,null,null,null,null,null,null,null,null,null,null,null,null,null,null,null,null,null,null,null,null,null,null,null,null,null,null,0]
[{"$f":"ЕСЛИПУСТО!A26","v":0},{"$f":"ЕСЛИПУСТО!B26","v":0},null,null,null,null,null,null,null,null,null,null,null,null,null,null,null,null,null,null,null,null,null,null,null,null,null,null,null,null,null,null,null,null,null,0]
[{"$f":"ЕСЛИПУСТО!A27","v":0},{"$f":"ЕСЛИПУСТО!B27","v":0},null,null,null,null,null,null,null,null,null,null,null,null,null,null,null,null,null,null,null,null,null,null,null,null,null,null,null,null,null,null,null,null,null,0]
[{"$f":"ЕСЛИПУСТО!A28","v":0},{"$f":"ЕСЛИПУСТО!B28","v":0},null,null,null,null,null,null,null,null,null,null,null,null,null,null,null,null,null,null,null,null,null,null,null,null,null,null,null,null,null,null,null,null,null,0]
[{"$f":"ЕСЛИПУСТО!A29","v":0},{"$f":"ЕСЛИПУСТО!B29","v":0},null,null,null,null,null,null,null,null,null,null,null,null,null,null,null,null,null,null,null,null,null,null,null,null,null,null,null,null,null,null,null,null,null,0]
[{"$f":"ЕСЛИПУСТО!A30","v":0},{"$f":"ЕСЛИПУСТО!B30","v":0},null,null,null,null,null,null,null,null,null,null,null,null,null,null,null,null,null,null,null,null,null,null,null,null,null,null,null,null,null,null,null,null,null,0]
[{"$f":"ЕСЛИПУСТО!A31","v":0},{"$f":"ЕСЛИПУСТО!B31","v":0},null,null,null,null,null,null,null,null,null,null,null,null,null,null,null,null,null,null,null,null,null,null,null,null,null,null,null,null,null,null,null,null,null,0]
[]
[{"$f":"IF(A36=\"\",\"Исполнитель____________________\",\"\")","v":""},null,null,null,null,null,null,null,null,null,null,{"$f":"IF(A36=\"\",\"Руководитель учреждения ___________________ ______________<<____>>___________20_____ г.\",\"\")","v":""},null,null,null,null,null,null,null,null,null,null,null,null,null,null,null,null,null,null,null,null,null,null,null,null,1]
["Фамилия Имя Отчество","долж-ность",null,null,null,null,null,null,null,null,null,"                                            числа месяца",null,null,null,null,null,null,null,null,null,null,null,null,null,null,null,null,null,null,null,null,null,"Вред-ность","Ноч-ных","Празд-ничных","Всего"]
[null,null,1,2,3,4,5,6,7,8,9,10,11,12,13,14,15,16,17,18,19,20,21,22,23,24,25,26,27,28,29,30,31,null,null,null,"часов"]
[{"$f":"ЕСЛИПУСТО!A36","v":"Петров"},{"$f":"ЕСЛИПУСТО!B36","v":0},null,null,null,null,null,null,null,null,null,null,null,null,null,null,null,null,null,null,null,null,null,null,null,null,null,null,null,null,null,null,null,null,null,0]
[{"$f":"формула!A37","v":""},{"$f":"формула!B37","v":0},null,null,null,null,null,null,null,null,null,null,null,null,null,null,null,null,null,null,null,null,null,null,null,null,null,null,null,null,null,null,null,null,null,0]
[{"$f":"формула!A38","v":""},{"$f":"формула!B38","v":0},null,null,null,null,null,null,null,null,null,null,null,null,null,null,null,null,null,null,null,null,null,null,null,null,null,null,null,null,null,null,null,null,null,0]
[{"$f":"формула!A39","v":""},{"$f":"формула!B39","v":0},null,null,null,null,null,null,null,null,null,null,null,null,null,null,null,null,null,null,null,null,null,null,null,null,null,null,null,null,null,null,null,null,null,0]
[{"$f":"формула!A40","v":""},{"$f":"формула!B40","v":0},null,null,null,null,null,null,null,null,null,null,null,null,null,null,null,null,null,null,null,null,null,null,null,null,null,null,null,null,null,null,null,null,null,0]
[{"$f":"формула!A41","v":""},{"$f":"формула!B41","v":0},null,null,null,null,null,null,null,null,null,null,null,null,null,null,null,null,null,null,null,null,null,null,null,null,null,null,null,null,null,null,null,null,null,0]
[{"$f":"формула!A42","v":""},{"$f":"формула!B42","v":0},null,null,null,null,null,null,null,null,null,null,null,null,null,null,null,null,null,null,null,null,null,null,null,null,null,null,null,null,null,null,null,null,null,0]
[{"$f":"формула!A43","v":""},{"$f":"формула!B43","v":0},null,null,null,null,null,null,null,null,null,null,null,null,null,null,null,null,null,null,null,null,null,null,null,null,null,null,null,null,null,null,null,null,null,0]
[{"$f":"формула!A44","v":""},{"$f":"формула!B44","v":0},null,null,null,null,null,null,null,null,null,null,null,null,null,null,null,null,null,null,null,null,null,null,null,null,null,null,null,null,null,null,null,null,null,0]
[{"$f":"формула!A45","v":""},{"$f":"формула!B45","v":0},null,null,null,null,null,null,null,null,null,null,null,null,null,null,null,null,null,null,null,null,null,null,null,null,null,null,null,null,null,null,null,null,null,0]
[{"$f":"формула!A46","v":""},{"$f":"формула!B46","v":0},null,null,null,null,null,null,null,null,null,null,null,null,null,null,null,null,null,null,null,null,null,null,null,null,null,null,null,null,null,null,null,null,null,0]
[{"$f":"формула!A47","v":""},{"$f":"формула!B47","v":0},null,null,null,null,null,null,null,null,null,null,null,null,null,null,null,null,null,null,null,null,null,null,null,null,null,null,null,null,null,null,null,null,null,0]
[{"$f":"формула!A48","v":""},{"$f":"формула!B48","v":0},null,null,null,null,null,null,null,null,null,null,null,null,null,null,null,null,null,null,null,null,null,null,null,null,null,null,null,null,null,null,null,null,null,0]
[{"$f":"формула!A49","v":""},{"$f":"формула!B49","v":0},null,null,null,null,null,null,null,null,null,null,null,null,null,null,null,null,null,null,null,null,null,null,null,null,null,null,null,null,null,null,null,null,null,0]
[{"$f":"формула!A50","v":""},{"$f":"формула!B50","v":0},null,null,null,null,null,null,null,null,null,null,null,null,null,null,null,null,null,null,null,null,null,null,null,null,null,null,null,null,null,null,null,null,null,0]
[{"$f":"формула!A51","v":""},{"$f":"формула!B51","v":0},null,null,null,null,null,null,null,null,null,null,null,null,null,null,null,null,null,null,null,null,null,null,null,null,null,null,null,null,null,null,null,null,null,0]
[{"$f":"формула!A52","v":""},{"$f":"формула!B52","v":0},null,null,null,null,null,null,null,null,null,null,null,null,null,null,null,null,null,null,null,null,null,null,null,null,null,null,null,null,null,null,null,null,null,0]
[{"$f":"формула!A53","v":""},{"$f":"формула!B53","v":0},null,null,null,null,null,null,null,null,null,null,null,null,null,null,null,null,null,null,null,null,null,null,null,null,null,null,null,null,null,null,null,null,null,0]
[{"$f":"формула!A54","v":""},{"$f":"формула!B54","v":0},null,null,null,null,null,null,null,null,null,null,null,null,null,null,null,null,null,null,null,null,null,null,null,null,null,null,null,null,null,null,null,null,null,0]
[{"$f":"формула!A55","v":""},{"$f":"формула!B55","v":0},null,null,null,null,null,null,null,null,null,null,null,null,null,null,null,null,null,null,null,null,null,null,null,null,null,null,null,null,null,null,null,null,null,0]
[{"$f":"формула!A56","v":""},{"$f":"формула!B56","v":0},null,null,null,null,null,null,null,null,null,null,null,null,null,null,null,null,null,null,null,null,null,null,null,null,null,null,null,null,null,null,null,null,null,0]
[{"$f":"формула!A57","v":""},{"$f":"формула!B57","v":0},null,null,null,null,null,null,null,null,null,null,null,null,null,null,null,null,null,null,null,null,null,null,null,null,null,null,null,null,null,null,null,null,null,0]
[{"$f":"формула!A58","v":""},{"$f":"формула!B58","v":0},null,null,null,null,null,null,null,null,null,null,null,null,null,null,null,null,null,null,null,null,null,null,null,null,null,null,null,null,null,null,null,null,null,0]
[{"$f":"формула!A59","v":""},{"$f":"формула!B59","v":0},null,null,null,null,null,null,null,null,null,null,null,null,null,null,null,null,null,null,null,null,null,null,null,null,null,null,null,null,null,null,null,null,null,0]
[{"$f":"формула!A60","v":""},{"$f":"формула!B60","v":0},null,null,null,null,null,null,null,null,null,null,null,null,null,null,null,null,null,null,null,null,null,null,null,null,null,null,null,null,null,null,null,null,null,0]
[{"$f":"формула!A61","v":""},{"$f":"формула!B61","v":0},null,null,null,null,null,null,null,null,null,null,null,null,null,null,null,null,null,null,null,null,null,null,null,null,null,null,null,null,null,null,null,null,null,0]
[{"$f":"формула!A62","v":""},{"$f":"формула!B62","v":0},null,null,null,null,null,null,null,null,null,null,null,null,null,null,null,null,null,null,null,null,null,null,null,null,null,null,null,null,null,null,null,null,null,0]
[{"$f":"формула!A63","v":""},{"$f":"формула!B63","v":0},null,null,null,null,null,null,null,null,null,null,null,null,null,null,null,null,null,null,null,null,null,null,null,null,null,null,null,null,null,null,null,null,null,0]
[{"$f":"формула!A64","v":""},{"$f":"формула!B64","v":0},null,null,null,null,null,null,null,null,null,null,null,null,null,null,null,null,null,null,null,null,null,null,null,null,null,null,null,null,null,null,null,null,null,0]
[{"$f":"формула!A65","v":""},{"$f":"формула!B65","v":0},null,null,null,null,null,null,null,null,null,null,null,null,null,null,null,null,null,null,null,null,null,null,null,null,null,null,null,null,null,null,null,null,null,0]
[null,null,null,null,null,null,null,null,null,null,null,null,null,null,null,null,null,null,null,null,null,null,null,null,null,null,null,null,null,null,null,null,null,null,null,null,2]
[{"$f":"IF(A70=\"\",\"Исполнитель_______________________\",\"\")","v":""},null,null,null,null,null,null,null,null,null,null,{"$f":"IF(A70=\"\",\"Руководитель учреждения ___________________ ______________<<____>>___________20_____ г.\",\"\")","v":""}]
["Фамилия Имя Отчество","долж-ность",null,null,null,null,null,null,null,null,null,"                                            числа месяца",null,null,null,null,null,null,null,null,null,null,null,null,null,null,null,null,null,null,null,null,null,"Вред-ность","Ноч-ных","Празд-ничных","Всего"]
[null,null,1,2,3,4,5,6,7,8,9,10,11,12,13,14,15,16,17,18,19,20,21,22,23,24,25,26,27,28,29,30,31,null,null,null,"часов"]
[{"$f":"ЕСЛИПУСТО!A70","v":"ппп"},{"$f":"ЕСЛИПУСТО!B70","v":0},null,null,null,null,null,null,null,null,null,null,null,null,null,null,null,null,null,null,null,null,null,null,null,null,null,null,null,null,null,null,null,null,null,0]
[{"$f":"формула!A71","v":""},{"$f":"формула!B71","v":0},null,null,null,null,null,null,null,null,null,null,null,null,null,null,null,null,null,null,null,null,null,null,null,null,null,null,null,null,null,null,null,null,null,0]
[{"$f":"формула!A72","v":""},{"$f":"формула!B72","v":0},null,null,null,null,null,null,null,null,null,null,null,null,null,null,null,null,null,null,null,null,null,null,null,null,null,null,null,null,null,null,null,null,null,0]
[{"$f":"формула!A73","v":""},{"$f":"формула!B73","v":0},null,null,null,null,null,null,null,null,null,null,null,null,null,null,null,null,null,null,null,null,null,null,null,null,null,null,null,null,null,null,null,null,null,0]
[{"$f":"формула!A74","v":""},{"$f":"формула!B74","v":0},null,null,null,null,null,null,null,null,null,null,null,null,null,null,null,null,null,null,null,null,null,null,null,null,null,null,null,null,null,null,null,null,null,0]
[{"$f":"формула!A75","v":""},{"$f":"формула!B75","v":0},null,null,null,null,null,null,null,null,null,null,null,null,null,null,null,null,null,null,null,null,null,null,null,null,null,null,null,null,null,null,null,null,null,0]
[{"$f":"формула!A76","v":""},{"$f":"формула!B76","v":0},null,null,null,null,null,null,null,null,null,null,null,null,null,null,null,null,null,null,null,null,null,null,null,null,null,null,null,null,null,null,null,null,null,0]
[{"$f":"формула!A77","v":""},{"$f":"формула!B77","v":0},null,null,null,null,null,null,null,null,null,null,null,null,null,null,null,null,null,null,null,null,null,null,null,null,null,null,null,null,null,null,null,null,null,0]
[{"$f":"формула!A78","v":""},{"$f":"формула!B78","v":0},null,null,null,null,null,null,null,null,null,null,null,null,null,null,null,null,null,null,null,null,null,null,null,null,null,null,null,null,null,null,null,null,null,0]
[{"$f":"формула!A79","v":""},{"$f":"формула!B79","v":0},null,null,null,null,null,null,null,null,null,null,null,null,null,null,null,null,null,null,null,null,null,null,null,null,null,null,null,null,null,null,null,null,null,0]
[{"$f":"формула!A80","v":""},{"$f":"формула!B80","v":0},null,null,null,null,null,null,null,null,null,null,null,null,null,null,null,null,null,null,null,null,null,null,null,null,null,null,null,null,null,null,null,null,null,0]
[{"$f":"формула!A81","v":""},{"$f":"формула!B81","v":0},null,null,null,null,null,null,null,null,null,null,null,null,null,null,null,null,null,null,null,null,null,null,null,null,null,null,null,null,null,null,null,null,null,0]
[{"$f":"формула!A82","v":""},{"$f":"формула!B82","v":0},null,null,null,null,null,null,null,null,null,null,null,null,null,null,null,null,null,null,null,null,null,null,null,null,null,null,null,null,null,null,null,null,null,0]
[{"$f":"формула!A83","v":""},{"$f":"формула!B83","v":0},null,null,null,null,null,null,null,null,null,null,null,null,null,null,null,null,null,null,null,null,null,null,null,null,null,null,null,null,null,null,null,null,null,0]
[{"$f":"формула!A84","v":""},{"$f":"формула!B84","v":0},null,null,null,null,null,null,null,null,null,null,null,null,null,null,null,null,null,null,null,null,null,null,null,null,null,null,null,null,null,null,null,null,null,0]
[{"$f":"формула!A85","v":""},{"$f":"формула!B85","v":0},null,null,null,null,null,null,null,null,null,null,null,null,null,null,null,null,null,null,null,null,null,null,null,null,null,null,null,null,null,null,null,null,null,0]
[{"$f":"формула!A86","v":""},{"$f":"формула!B86","v":0},null,null,null,null,null,null,null,null,null,null,null,null,null,null,null,null,null,null,null,null,null,null,null,null,null,null,null,null,null,null,null,null,null,0]
[{"$f":"формула!A87","v":""},{"$f":"формула!B87","v":0},null,null,null,null,null,null,null,null,null,null,null,null,null,null,null,null,null,null,null,null,null,null,null,null,null,null,null,null,null,null,null,null,null,0]
[{"$f":"формула!A88","v":""},{"$f":"формула!B88","v":0},null,null,null,null,null,null,null,null,null,null,null,null,null,null,null,null,null,null,null,null,null,null,null,null,null,null,null,null,null,null,null,null,null,0]
[{"$f":"формула!A89","v":""},{"$f":"формула!B89","v":0},null,null,null,null,null,null,null,null,null,null,null,null,null,null,null,null,null,null,null,null,null,null,null,null,null,null,null,null,null,null,null,null,null,0]
[{"$f":"формула!A90","v":""},{"$f":"формула!B90","v":0},null,null,null,null,null,null,null,null,null,null,null,null,null,null,null,null,null,null,null,null,null,null,null,null,null,null,null,null,null,null,null,null,null,0]
[{"$f":"формула!A91","v":""},{"$f":"формула!B91","v":0},null,null,null,null,null,null,null,null,null,null,null,null,null,null,null,null,null,null,null,null,null,null,null,null,null,null,null,null,null,null,null,null,null,0]
[{"$f":"формула!A92","v":""},{"$f":"формула!B92","v":0},null,null,null,null,null,null,null,null,null,null,null,null,null,null,null,null,null,null,null,null,null,null,null,null,null,null,null,null,null,null,null,null,null,0]
[{"$f":"формула!A93","v":""},{"$f":"формула!B93","v":0},null,null,null,null,null,null,null,null,null,null,null,null,null,null,null,null,null,null,null,null,null,null,null,null,null,null,null,null,null,null,null,null,null,0]
[{"$f":"формула!A94","v":""},{"$f":"формула!B94","v":0},null,null,null,null,null,null,null,null,null,null,null,null,null,null,null,null,null,null,null,null,null,null,null,null,null,null,null,null,null,null,null,null,null,0]
[{"$f":"формула!A95","v":""},{"$f":"формула!B95","v":0},null,null,null,null,null,null,null,null,null,null,null,null,null,null,null,null,null,null,null,null,null,null,null,null,null,null,null,null,null,null,null,null,null,0]
[{"$f":"формула!A96","v":""},{"$f":"формула!B96","v":0},null,null,null,null,null,null,null,null,null,null,null,null,null,null,null,null,null,null,null,null,null,null,null,null,null,null,null,null,null,null,null,null,null,0]
[{"$f":"формула!A97","v":""},{"$f":"формула!B97","v":0},null,null,null,null,null,null,null,null,null,null,null,null,null,null,null,null,null,null,null,null,null,null,null,null,null,null,null,null,null,null,null,null,null,0]
[{"$f":"формула!A98","v":""},{"$f":"формула!B98","v":0},null,null,null,null,null,null,null,null,null,null,null,null,null,null,null,null,null,null,null,null,null,null,null,null,null,null,null,null,null,null,null,null,null,0]
[{"$f":"формула!A99","v":""},{"$f":"формула!B99","v":0},null,null,null,null,null,null,null,null,null,null,null,null,null,null,null,null,null,null,null,null,null,null,null,null,null,null,null,null,null,null,null,null,null,0]
[null,null,null,null,null,null,null,null,null,null,null,null,null,null,null,null,null,null,null,null,null,null,null,null,null,null,null,null,null,null,null,null,null,null,null,null,3]
[{"$f":"IF(A104=\"\",\"Исполнитель_______________________\",\"\")","v":""},null,null,null,null,null,null,null,null,null,null,{"$f":"IF(A104=\"\",\"Руководитель учреждения ___________________ ______________<<____>>___________20_____ г.\",\"\")","v":""}]
["Фамилия Имя Отчество","долж-ность",null,null,null,null,null,null,null,null,null,"                                            числа месяца",null,null,null,null,null,null,null,null,null,null,null,null,null,null,null,null,null,null,null,null,null,"Вред-ность","Ноч-ных","Празд-ничных","Всего"]
[null,null,1,2,3,4,5,6,7,8,9,10,11,12,13,14,15,16,17,18,19,20,21,22,23,24,25,26,27,28,29,30,31,null,null,null,"часов"]
[{"$f":"ЕСЛИПУСТО!A104","v":"ллл"},{"$f":"ЕСЛИПУСТО!B104","v":0},null,null,null,null,null,null,null,null,null,null,null,null,null,null,null,null,null,null,null,null,null,null,null,null,null,null,null,null,null,null,null,null,null,0]
[{"$f":"формула!A105","v":""},{"$f":"формула!B105","v":0},null,null,null,null,null,null,null,null,null,null,null,null,null,null,null,null,null,null,null,null,null,null,null,null,null,null,null,null,null,null,null,null,null,0]
[{"$f":"формула!A106","v":""},{"$f":"формула!B106","v":0},null,null,null,null,null,null,null,null,null,null,null,null,null,null,null,null,null,null,null,null,null,null,null,null,null,null,null,null,null,null,null,null,null,0]
[{"$f":"формула!A107","v":""},{"$f":"формула!B107","v":0},null,null,null,null,null,null,null,null,null,null,null,null,null,null,null,null,null,null,null,null,null,null,null,null,null,null,null,null,null,null,null,null,null,0]
[{"$f":"формула!A108","v":""},{"$f":"формула!B108","v":0},null,null,null,null,null,null,null,null,null,null,null,null,null,null,null,null,null,null,null,null,null,null,null,null,null,null,null,null,null,null,null,null,null,0]
[{"$f":"формула!A109","v":""},{"$f":"формула!B109","v":0},null,null,null,null,null,null,null,null,null,null,null,null,null,null,null,null,null,null,null,null,null,null,null,null,null,null,null,null,null,null,null,null,null,0]
[{"$f":"формула!A110","v":""},{"$f":"формула!B110","v":0},null,null,null,null,null,null,null,null,null,null,null,null,null,null,null,null,null,null,null,null,null,null,null,null,null,null,null,null,null,null,null,null,null,0]
[{"$f":"формула!A111","v":""},{"$f":"формула!B111","v":0},null,null,null,null,null,null,null,null,null,null,null,null,null,null,null,null,null,null,null,null,null,null,null,null,null,null,null,null,null,null,null,null,null,0]
[{"$f":"формула!A112","v":""},{"$f":"формула!B112","v":0},null,null,null,null,null,null,null,null,null,null,null,null,null,null,null,null,null,null,null,null,null,null,null,null,null,null,null,null,null,null,null,null,null,0]
[{"$f":"формула!A113","v":""},{"$f":"формула!B113","v":0},null,null,null,null,null,null,null,null,null,null,null,null,null,null,null,null,null,null,null,null,null,null,null,null,null,null,null,null,null,null,null,null,null,0]
[{"$f":"формула!A114","v":""},{"$f":"формула!B114","v":0},null,null,null,null,null,null,null,null,null,null,null,null,null,null,null,null,null,null,null,null,null,null,null,null,null,null,null,null,null,null,null,null,null,0]
[{"$f":"формула!A115","v":""},{"$f":"формула!B115","v":0},null,null,null,null,null,null,null,null,null,null,null,null,null,null,null,null,null,null,null,null,null,null,null,null,null,null,null,null,null,null,null,null,null,0]
[{"$f":"формула!A116","v":""},{"$f":"формула!B116","v":0},null,null,null,null,null,null,null,null,null,null,null,null,null,null,null,null,null,null,null,null,null,null,null,null,null,null,null,null,null,null,null,null,null,0]
[{"$f":"формула!A117","v":""},{"$f":"формула!B117","v":0},null,null,null,null,null,null,null,null,null,null,null,null,null,null,null,null,null,null,null,null,null,null,null,null,null,null,null,null,null,null,null,null,null,0]
[{"$f":"формула!A118","v":""},{"$f":"формула!B118","v":0},null,null,null,null,null,null,null,null,null,null,null,null,null,null,null,null,null,null,null,null,null,null,null,null,null,null,null,null,null,null,null,null,null,0]
[{"$f":"формула!A119","v":""},{"$f":"формула!B119","v":0},null,null,null,null,null,null,null,null,null,null,null,null,null,null,null,null,null,null,null,null,null,null,null,null,null,null,null,null,null,null,null,null,null,0]
[{"$f":"формула!A120","v":""},{"$f":"формула!B120","v":0},null,null,null,null,null,null,null,null,null,null,null,null,null,null,null,null,null,null,null,null,null,null,null,null,null,null,null,null,null,null,null,null,null,0]
[{"$f":"формула!A121","v":""},{"$f":"формула!B121","v":0},null,null,null,null,null,null,null,null,null,null,null,null,null,null,null,null,null,null,null,null,null,null,null,null,null,null,null,null,null,null,null,null,null,0]
[{"$f":"формула!A122","v":""},{"$f":"формула!B122","v":0},null,null,null,null,null,null,null,null,null,null,null,null,null,null,null,null,null,null,null,null,null,null,null,null,null,null,null,null,null,null,null,null,null,0]
[{"$f":"формула!A123","v":""},{"$f":"формула!B123","v":0},null,null,null,null,null,null,null,null,null,null,null,null,null,null,null,null,null,null,null,null,null,null,null,null,null,null,null,null,null,null,null,null,null,0]
[{"$f":"формула!A124","v":""},{"$f":"формула!B124","v":0},null,null,null,null,null,null,null,null,null,null,null,null,null,null,null,null,null,null,null,null,null,null,null,null,null,null,null,null,null,null,null,null,null,0]
[{"$f":"формула!A125","v":""},{"$f":"формула!B125","v":0},null,null,null,null,null,null,null,null,null,null,null,null,null,null,null,null,null,null,null,null,null,null,null,null,null,null,null,null,null,null,null,null,null,0]
[{"$f":"формула!A126","v":""},{"$f":"формула!B126","v":0},null,null,null,null,null,null,null,null,null,null,null,null,null,null,null,null,null,null,null,null,null,null,null,null,null,null,null,null,null,null,null,null,null,0]
[{"$f":"формула!A127","v":""},{"$f":"формула!B127","v":0},null,null,null,null,null,null,null,null,null,null,null,null,null,null,null,null,null,null,null,null,null,null,null,null,null,null,null,null,null,null,null,null,null,0]
[{"$f":"формула!A128","v":""},{"$f":"формула!B128","v":0},null,null,null,null,null,null,null,null,null,null,null,null,null,null,null,null,null,null,null,null,null,null,null,null,null,null,null,null,null,null,null,null,null,0]
[{"$f":"формула!A129","v":""},{"$f":"формула!B129","v":0},null,null,null,null,null,null,null,null,null,null,null,null,null,null,null,null,null,null,null,null,null,null,null,null,null,null,null,null,null,null,null,null,null,0]
[{"$f":"формула!A130","v":""},{"$f":"формула!B130","v":0},null,null,null,null,null,null,null,null,null,null,null,null,null,null,null,null,null,null,null,null,null,null,null,null,null,null,null,null,null,null,null,null,null,0]
[{"$f":"формула!A131","v":""},{"$f":"формула!B131","v":0},null,null,null,null,null,null,null,null,null,null,null,null,null,null,null,null,null,null,null,null,null,null,null,null,null,null,null,null,null,null,null,null,null,0]
[{"$f":"формула!A132","v":""},{"$f":"формула!B132","v":0},null,null,null,null,null,null,null,null,null,null,null,null,null,null,null,null,null,null,null,null,null,null,null,null,null,null,null,null,null,null,null,null,null,0]
[{"$f":"формула!A133","v":""},{"$f":"формула!B133","v":0},null,null,null,null,null,null,null,null,null,null,null,null,null,null,null,null,null,null,null,null,null,null,null,null,null,null,null,null,null,null,null,null,null,0]
[null,null,null,null,null,null,null,null,null,null,null,null,null,null,null,null,null,null,null,null,null,null,null,null,null,null,null,null,null,null,null,null,null,null,null,null,4]

{"sheet":"объединенная","index":3,"n_rows":134,"n_cols":39,"rows_kept":134,"cut":false,"hidden":false,"merged":[[3,25,3,29],[3,31,3,34],[5,0,6,0],[5,1,6,1],[5,33,6,33],[5,34,6,34],[5,35,6,35],[33,0,34,0],[33,1,34,1],[33,33,34,33],[33,34,34,34],[33,35,34,35],[7,0,8,0],[9,0,10,0],[11,0,12,0],[13,0,14,0],[25,0,26,0],[15,0,16,0],[17,0,18,0],[19,0,20,0],[21,0,22,0],[23,0,24,0],[67,35,68,35],[101,0,102,0],[101,1,102,1],[101,33,102,33],[101,34,102,34],[101,35,102,35],[67,0,68,0],[67,1,68,1],[67,33,68,33],[67,34,68,34],[81,0,82,0],[69,0,70,0],[53,0,54,0],[27,0,28,0],[29,0,30,0],[35,0,36,0],[37,0,38,0],[39,0,40,0],[41,0,42,0],[43,0,44,0],[45,0,46,0],[47,0,48,0],[49,0,50,0],[51,0,52,0],[55,0,56,0],[57,0,58,0],[59,0,60,0],[61,0,62,0],[63,0,64,0],[119,0,120,0],[121,0,122,0],[95,0,96,0],[97,0,98,0],[103,0,104,0],[105,0,106,0],[107,0,108,0],[109,0,110,0],[2,38,25,52],[111,0,112,0],[113,0,114,0],[115,0,116,0],[117,0,118,0],[83,0,84,0],[85,0,86,0],[87,0,88,0],[89,0,90,0],[91,0,92,0],[93,0,94,0],[71,0,72,0],[73,0,74,0],[75,0,76,0],[77,0,78,0],[79,0,80,0],[123,0,124,0],[125,0,126,0],[127,0,128,0],[129,0,130,0],[131,0,132,0]]}
["Учреждение:"]
["Структурное подразделение:"]
[null,null,null,null,null,null,null,null,null,null,"   ",null,null,"   ТАБЕЛЬ",null,null,null,null,null,null,null,null,null,null,null,"Отчетный период",null,null,null,null,null,null,null,null,null,null,null,null,"Sub Prn()\n    \nEnd Sub"]
[null,null,null,null," ",null,"          учёта рабочего времени и расчета заработной платы ",null,null,null,null,null,null,null,null,null,null,null,null,null,null,null,null,null,"с",null,null,null,null,null,"по"]
[]
["Фамилия Имя Отчество","долж-ность",null,null,null,null,null,null,null,null,null,"                                            числа месяца",null,null,null,null,null,null,null,null,null,null,null,null,null,null,null,null,null,null,null,null,null,"Вред-ность","Ноч-ных","Празд-ничных","Всего"]
[null,null,1,2,3,4,5,6,7,8,9,10,11,12,13,14,15,16,17,18,19,20,21,22,23,24,25,26,27,28,29,30,31,null,null,null,"часов"]
[{"$f":"ЕСЛИПУСТО!A8","v":"Иванов"},null,null,null,null,null,null,null,null,null,null,null,null,null,null,null,null,null,null,null,null,null,null,null,null,null,null,null,null,null,null,null,null,null,null,0]
[null,null,null,null,null,null,null,null,null,null,null,null,null,null,null,null,null,null,null,null,null,null,null,null,null,null,null,null,null,null,null,null,null,null,null,0]
[{"$f":"ЕСЛИПУСТО!A10","v":0},null,null,null,null,null,null,null,null,null,null,null,null,null,null,null,null,null,null,null,null,null,null,null,null,null,null,null,null,null,null,null,null,null,null,0]
[null,null,null,null,null,null,null,null,null,null,null,null,null,null,null,null,null,null,null,null,null,null,null,null,null,null,null,null,null,null,null,null,null,null,null,0]
[{"$f":"ЕСЛИПУСТО!A12","v":0},null,null,null,null,null,null,null,null,null,null,null,null,null,null,null,null,null,null,null,null,null,null,null,null,null,null,null,null,null,null,null,null,null,null,0]
[null,null,null,null,null,null,null,null,null,null,null,null,null,null,null,null,null,null,null,null,null,null,null,null,null,null,null,null,null,null,null,null,null,null,null,0]
[{"$f":"ЕСЛИПУСТО!A14","v":0},null,null,null,null,null,null,null,null,null,null,null,null,null,null,null,null,null,null,null,null,null,null,null,null,null,null,null,null,null,null,null,null,null,null,0]
[null,null,null,null,null,null,null,null,null,null,null,null,null,null,null,null,null,null,null,null,null,null,null,null,null,null,null,null,null,null,null,null,null,null,null,0]
[{"$f":"ЕСЛИПУСТО!A16","v":0},null,null,null,null,null,null,null,null,null,null,null,null,null,null,null,null,null,null,null,null,null,null,null,null,null,null,null,null,null,null,null,null,null,null,0]
[null,null,null,null,null,null,null,null,null,null,null,null,null,null,null,null,null,null,null,null,null,null,null,null,null,null,null,null,null,null,null,null,null,null,null,0]
[{"$f":"ЕСЛИПУСТО!A18","v":0},null,null,null,null,null,null,null,null,null,null,null,null,null,null,null,null,null,null,null,null,null,null,null,null,null,null,null,null,null,null,null,null,null,null,0]
[null,null,null,null,null,null,null,null,null,null,null,null,null,null,null,null,null,null,null,null,null,null,null,null,null,null,null,null,null,null,null,null,null,null,null,0]
[{"$f":"ЕСЛИПУСТО!A20","v":0},null,null,null,null,null,null,null,null,null,null,null,null,null,null,null,null,null,null,null,null,null,null,null,null,null,null,null,null,null,null,null,null,null,null,0]
[null,null,null,null,null,null,null,null,null,null,null,null,null,null,null,null,null,null,null,null,null,null,null,null,null,null,null,null,null,null,null,null,null,null,null,0]
[{"$f":"ЕСЛИПУСТО!A22","v":0},null,null,null,null,null,null,null,null,null,null,null,null,null,null,null,null,null,null,null,null,null,null,null,null,null,null,null,null,null,null,null,null,null,null,0]
[null,null,null,null,null,null,null,null,null,null,null,null,null,null,null,null,null,null,null,null,null,null,null,null,null,null,null,null,null,null,null,null,null,null,null,0]
[{"$f":"ЕСЛИПУСТО!A24","v":0},null,null,null,null,null,null,null,null,null,null,null,null,null,null,null,null,null,null,null,null,null,null,null,null,null,null,null,null,null,null,null,null,null,null,0]
[null,null,null,null,null,null,null,null,null,null,null,null,null,null,null,null,null,null,null,null,null,null,null,null,null,null,null,null,null,null,null,null,null,null,null,0]
[{"$f":"ЕСЛИПУСТО!A26","v":0},null,null,null,null,null,null,null,null,null,null,null,null,null,null,null,null,null,null,null,null,null,null,null,null,null,null,null,null,null,null,null,null,null,null,0]
[null,null,null,null,null,null,null,null,null,null,null,null,null,null,null,null,null,null,null,null,null,null,null,null,null,null,null,null,null,null,null,null,null,null,null,0]
[{"$f":"ЕСЛИПУСТО!A28","v":0},null,null,null,null,null,null,null,null,null,null,null,null,null,null,null,null,null,null,null,null,null,null,null,null,null,null,null,null,null,null,null,null,null,null,0]
[null,null,null,null,null,null,null,null,null,null,null,null,null,null,null,null,null,null,null,null,null,null,null,null,null,null,null,null,null,null,null,null,null,null,null,0]
[{"$f":"ЕСЛИПУСТО!A30","v":0},null,null,null,null,null,null,null,null,null,null,null,null,null,null,null,null,null,null,null,null,null,null,null,null,null,null,null,null,null,null,null,null,null,null,0]
[null,null,null,null,null,null,null,null,null,null,null,null,null,null,null,null,null,null,null,null,null,null,null,null,null,null,null,null,null,null,null,null,null,null,null,0]
[]
[{"$f":"IF(A36=\"\",\"Исполнитель____________________\",\"\")","v":""},null,null,null,null,null,null,null,null,null,null,{"$f":"IF(A36=\"\",\"Руководитель учреждения ___________________ ______________<<____>>___________20_____ г.\",\"\")","v":""},null,null,null,null,null,null,null,null,null,null,null,null,null,null,null,null,null,null,null,null,null,null,null,null,1]
["Фамилия Имя Отчество","долж-ность",null,null,null,null,null,null,null,null,null,"                                            числа месяца",null,null,null,null,null,null,null,null,null,null,null,null,null,null,null,null,null,null,null,null,null,"Вред-ность","Ноч-ных","Празд-ничных","Всего"]
[null,null,1,2,3,4,5,6,7,8,9,10,11,12,13,14,15,16,17,18,19,20,21,22,23,24,25,26,27,28,29,30,31,null,null,null,"часов"]
[{"$f":"ЕСЛИПУСТО!A36","v":"Петров"},null,null,null,null,null,null,null,null,null,null,null,null,null,null,null,null,null,null,null,null,null,null,null,null,null,null,null,null,null,null,null,null,null,null,0]
[null,null,null,null,null,null,null,null,null,null,null,null,null,null,null,null,null,null,null,null,null,null,null,null,null,null,null,null,null,null,null,null,null,null,null,0]
[{"$f":"ЕСЛИПУСТО!A38","v":0},null,null,null,null,null,null,null,null,null,null,null,null,null,null,null,null,null,null,null,null,null,null,null,null,null,null,null,null,null,null,null,null,null,null,0]
[null,null,null,null,null,null,null,null,null,null,null,null,null,null,null,null,null,null,null,null,null,null,null,null,null,null,null,null,null,null,null,null,null,null,null,0]
[{"$f":"ЕСЛИПУСТО!A40","v":0},null,null,null,null,null,null,null,null,null,null,null,null,null,null,null,null,null,null,null,null,null,null,null,null,null,null,null,null,null,null,null,null,null,null,0]
[null,null,null,null,null,null,null,null,null,null,null,null,null,null,null,null,null,null,null,null,null,null,null,null,null,null,null,null,null,null,null,null,null,null,null,0]
[{"$f":"ЕСЛИПУСТО!A42","v":0},null,null,null,null,null,null,null,null,null,null,null,null,null,null,null,null,null,null,null,null,null,null,null,null,null,null,null,null,null,null,null,null,null,null,0]
[null,null,null,null,null,null,null,null,null,null,null,null,null,null,null,null,null,null,null,null,null,null,null,null,null,null,null,null,null,null,null,null,null,null,null,0]
[{"$f":"ЕСЛИПУСТО!A44","v":0},null,null,null,null,null,null,null,null,null,null,null,null,null,null,null,null,null,null,null,null,null,null,null,null,null,null,null,null,null,null,null,null,null,null,0]
[null,null,null,null,null,null,null,null,null,null,null,null,null,null,null,null,null,null,null,null,null,null,null,null,null,null,null,null,null,null,null,null,null,null,null,0]
[{"$f":"ЕСЛИПУСТО!A46","v":0},null,null,null,null,null,null,null,null,null,null,null,null,null,null,null,null,null,null,null,null,null,null,null,null,null,null,null,null,null,null,null,null,null,null,0]
[null,null,null,null,null,null,null,null,null,null,null,null,null,null,null,null,null,null,null,null,null,null,null,null,null,null,null,null,null,null,null,null,null,null,null,0]
[{"$f":"ЕСЛИПУСТО!A48","v":0},null,null,null,null,null,null,null,null,null,null,null,null,null,null,null,null,null,null,null,null,null,null,null,null,null,null,null,null,null,null,null,null,null,null,0]
[null,null,null,null,null,null,null,null,null,null,null,null,null,null,null,null,null,null,null,null,null,null,null,null,null,null,null,null,null,null,null,null,null,null,null,0]
[{"$f":"ЕСЛИПУСТО!A50","v":0},null,null,null,null,null,null,null,null,null,null,null,null,null,null,null,null,null,null,null,null,null,null,null,null,null,null,null,null,null,null,null,null,null,null,0]
[null,null,null,null,null,null,null,null,null,null,null,null,null,null,null,null,null,null,null,null,null,null,null,null,null,null,null,null,null,null,null,null,null,null,null,0]
[{"$f":"ЕСЛИПУСТО!A52","v":0},null,null,null,null,null,null,null,null,null,null,null,null,null,null,null,null,null,null,null,null,null,null,null,null,null,null,null,null,null,null,null,null,null,null,0]
[null,null,null,null,null,null,null,null,null,null,null,null,null,null,null,null,null,null,null,null,null,null,null,null,null,null,null,null,null,null,null,null,null,null,null,0]
[{"$f":"ЕСЛИПУСТО!A54","v":0},null,null,null,null,null,null,null,null,null,null,null,null,null,null,null,null,null,null,null,null,null,null,null,null,null,null,null,null,null,null,null,null,null,null,0]
[null,null,null,null,null,null,null,null,null,null,null,null,null,null,null,null,null,null,null,null,null,null,null,null,null,null,null,null,null,null,null,null,null,null,null,0]
[{"$f":"ЕСЛИПУСТО!A56","v":0},null,null,null,null,null,null,null,null,null,null,null,null,null,null,null,null,null,null,null,null,null,null,null,null,null,null,null,null,null,null,null,null,null,null,0]
[null,null,null,null,null,null,null,null,null,null,null,null,null,null,null,null,null,null,null,null,null,null,null,null,null,null,null,null,null,null,null,null,null,null,null,0]
[{"$f":"ЕСЛИПУСТО!A58","v":0},null,null,null,null,null,null,null,null,null,null,null,null,null,null,null,null,null,null,null,null,null,null,null,null,null,null,null,null,null,null,null,null,null,null,0]
[null,null,null,null,null,null,null,null,null,null,null,null,null,null,null,null,null,null,null,null,null,null,null,null,null,null,null,null,null,null,null,null,null,null,null,0]
[{"$f":"ЕСЛИПУСТО!A60","v":0},null,null,null,null,null,null,null,null,null,null,null,null,null,null,null,null,null,null,null,null,null,null,null,null,null,null,null,null,null,null,null,null,null,null,0]
[null,null,null,null,null,null,null,null,null,null,null,null,null,null,null,null,null,null,null,null,null,null,null,null,null,null,null,null,null,null,null,null,null,null,null,0]
[{"$f":"ЕСЛИПУСТО!A62","v":0},null,null,null,null,null,null,null,null,null,null,null,null,null,null,null,null,null,null,null,null,null,null,null,null,null,null,null,null,null,null,null,null,null,null,0]
[null,null,null,null,null,null,null,null,null,null,null,null,null,null,null,null,null,null,null,null,null,null,null,null,null,null,null,null,null,null,null,null,null,null,null,0]
[{"$f":"ЕСЛИПУСТО!A64","v":0},null,null,null,null,null,null,null,null,null,null,null,null,null,null,null,null,null,null,null,null,null,null,null,null,null,null,null,null,null,null,null,null,null,null,0]
[null,null,null,null,null,null,null,null,null,null,null,null,null,null,null,null,null,null,null,null,null,null,null,null,null,null,null,null,null,null,null,null,null,null,null,0]
[null,null,null,null,null,null,null,null,null,null,null,null,null,null,null,null,null,null,null,null,null,null,null,null,null,null,null,null,null,null,null,null,null,null,null,null,2]
[{"$f":"IF(A70=\"\",\"Исполнитель_______________________\",\"\")","v":""},null,null,null,null,null,null,null,null,null,null,{"$f":"IF(A70=\"\",\"Руководитель учреждения ___________________ ______________<<____>>___________20_____ г.\",\"\")","v":""}]
["Фамилия Имя Отчество","долж-ность",null,null,null,null,null,null,null,null,null,"                                            числа месяца",null,null,null,null,null,null,null,null,null,null,null,null,null,null,null,null,null,null,null,null,null,"Вред-ность","Ноч-ных","Празд-ничных","Всего"]
[null,null,1,2,3,4,5,6,7,8,9,10,11,12,13,14,15,16,17,18,19,20,21,22,23,24,25,26,27,28,29,30,31,null,null,null,"часов"]
[{"$f":"ЕСЛИПУСТО!A70","v":"ппп"},null,null,null,null,null,null,null,null,null,null,null,null,null,null,null,null,null,null,null,null,null,null,null,null,null,null,null,null,null,null,null,null,null,null,0]
[null,null,null,null,null,null,null,null,null,null,null,null,null,null,null,null,null,null,null,null,null,null,null,null,null,null,null,null,null,null,null,null,null,null,null,0]
[{"$f":"ЕСЛИПУСТО!A72","v":0},null,null,null,null,null,null,null,null,null,null,null,null,null,null,null,null,null,null,null,null,null,null,null,null,null,null,null,null,null,null,null,null,null,null,0]
[null,null,null,null,null,null,null,null,null,null,null,null,null,null,null,null,null,null,null,null,null,null,null,null,null,null,null,null,null,null,null,null,null,null,null,0]
[{"$f":"ЕСЛИПУСТО!A74","v":0},null,null,null,null,null,null,null,null,null,null,null,null,null,null,null,null,null,null,null,null,null,null,null,null,null,null,null,null,null,null,null,null,null,null,0]
[null,null,null,null,null,null,null,null,null,null,null,null,null,null,null,null,null,null,null,null,null,null,null,null,null,null,null,null,null,null,null,null,null,null,null,0]
[{"$f":"ЕСЛИПУСТО!A76","v":0},null,null,null,null,null,null,null,null,null,null,null,null,null,null,null,null,null,null,null,null,null,null,null,null,null,null,null,null,null,null,null,null,null,null,0]
[null,null,null,null,null,null,null,null,null,null,null,null,null,null,null,null,null,null,null,null,null,null,null,null,null,null,null,null,null,null,null,null,null,null,null,0]
[{"$f":"ЕСЛИПУСТО!A78","v":0},null,null,null,null,null,null,null,null,null,null,null,null,null,null,null,null,null,null,null,null,null,null,null,null,null,null,null,null,null,null,null,null,null,null,0]
[null,null,null,null,null,null,null,null,null,null,null,null,null,null,null,null,null,null,null,null,null,null,null,null,null,null,null,null,null,null,null,null,null,null,null,0]
[{"$f":"ЕСЛИПУСТО!A80","v":0},null,null,null,null,null,null,null,null,null,null,null,null,null,null,null,null,null,null,null,null,null,null,null,null,null,null,null,null,null,null,null,null,null,null,0]
[null,null,null,null,null,null,null,null,null,null,null,null,null,null,null,null,null,null,null,null,null,null,null,null,null,null,null,null,null,null,null,null,null,null,null,0]
[{"$f":"ЕСЛИПУСТО!A82","v":0},null,null,null,null,null,null,null,null,null,null,null,null,null,null,null,null,null,null,null,null,null,null,null,null,null,null,null,null,null,null,null,null,null,null,0]
[null,null,null,null,null,null,null,null,null,null,null,null,null,null,null,null,null,null,null,null,null,null,null,null,null,null,null,null,null,null,null,null,null,null,null,0]
[{"$f":"ЕСЛИПУСТО!A84","v":0},null,null,null,null,null,null,null,null,null,null,null,null,null,null,null,null,null,null,null,null,null,null,null,null,null,null,null,null,null,null,null,null,null,null,0]
[null,null,null,null,null,null,null,null,null,null,null,null,null,null,null,null,null,null,null,null,null,null,null,null,null,null,null,null,null,null,null,null,null,null,null,0]
[{"$f":"ЕСЛИПУСТО!A86","v":0},null,null,null,null,null,null,null,null,null,null,null,null,null,null,null,null,null,null,null,null,null,null,null,null,null,null,null,null,null,null,null,null,null,null,0]
[null,null,null,null,null,null,null,null,null,null,null,null,null,null,null,null,null,null,null,null,null,null,null,null,null,null,null,null,null,null,null,null,null,null,null,0]
[{"$f":"ЕСЛИПУСТО!A88","v":0},null,null,null,null,null,null,null,null,null,null,null,null,null,null,null,null,null,null,null,null,null,null,null,null,null,null,null,null,null,null,null,null,null,null,0]
[null,null,null,null,null,null,null,null,null,null,null,null,null,null,null,null,null,null,null,null,null,null,null,null,null,null,null,null,null,null,null,null,null,null,null,0]
[{"$f":"ЕСЛИПУСТО!A90","v":0},null,null,null,null,null,null,null,null,null,null,null,null,null,null,null,null,null,null,null,null,null,null,null,null,null,null,null,null,null,null,null,null,null,null,0]
[null,null,null,null,null,null,null,null,null,null,null,null,null,null,null,null,null,null,null,null,null,null,null,null,null,null,null,null,null,null,null,null,null,null,null,0]
[{"$f":"ЕСЛИПУСТО!A92","v":0},null,null,null,null,null,null,null,null,null,null,null,null,null,null,null,null,null,null,null,null,null,null,null,null,null,null,null,null,null,null,null,null,null,null,0]
[null,null,null,null,null,null,null,null,null,null,null,null,null,null,null,null,null,null,null,null,null,null,null,null,null,null,null,null,null,null,null,null,null,null,null,0]
[{"$f":"ЕСЛИПУСТО!A94","v":0},null,null,null,null,null,null,null,null,null,null,null,null,null,null,null,null,null,null,null,null,null,null,null,null,null,null,null,null,null,null,null,null,null,null,0]
[null,null,null,null,null,null,null,null,null,null,null,null,null,null,null,null,null,null,null,null,null,null,null,null,null,null,null,null,null,null,null,null,null,null,null,0]
[{"$f":"ЕСЛИПУСТО!A96","v":0},null,null,null,null,null,null,null,null,null,null,null,null,null,null,null,null,null,null,null,null,null,null,null,null,null,null,null,null,null,null,null,null,null,null,0]
[null,null,null,null,null,null,null,null,null,null,null,null,null,null,null,null,null,null,null,null,null,null,null,null,null,null,null,null,null,null,null,null,null,null,null,0]
[{"$f":"ЕСЛИПУСТО!A98","v":0},null,null,null,null,null,null,null,null,null,null,null,null,null,null,null,null,null,null,null,null,null,null,null,null,null,null,null,null,null,null,null,null,null,null,0]
[null,null,null,null,null,null,null,null,null,null,null,null,null,null,null,null,null,null,null,null,null,null,null,null,null,null,null,null,null,null,null,null,null,null,null,0]
[null,null,null,null,null,null,null,null,null,null,null,null,null,null,null,null,null,null,null,null,null,null,null,null,null,null,null,null,null,null,null,null,null,null,null,null,3]
[{"$f":"IF(A104=\"\",\"Исполнитель_______________________\",\"\")","v":""},null,null,null,null,null,null,null,null,null,null,{"$f":"IF(A104=\"\",\"Руководитель учреждения ___________________ ______________<<____>>___________20_____ г.\",\"\")","v":""}]
["Фамилия Имя Отчество","долж-ность",null,null,null,null,null,null,null,null,null,"                                            числа месяца",null,null,null,null,null,null,null,null,null,null,null,null,null,null,null,null,null,null,null,null,null,"Вред-ность","Ноч-ных","Празд-ничных","Всего"]
[null,null,1,2,3,4,5,6,7,8,9,10,11,12,13,14,15,16,17,18,19,20,21,22,23,24,25,26,27,28,29,30,31,null,null,null,"часов"]
[{"$f":"ЕСЛИПУСТО!A104","v":"ллл"},null,null,null,null,null,null,null,null,null,null,null,null,null,null,null,null,null,null,null,null,null,null,null,null,null,null,null,null,null,null,null,null,null,null,0]
[null,null,null,null,null,null,null,null,null,null,null,null,null,null,null,null,null,null,null,null,null,null,null,null,null,null,null,null,null,null,null,null,null,null,null,0]
[{"$f":"ЕСЛИПУСТО!A106","v":0},null,null,null,null,null,null,null,null,null,null,null,null,null,null,null,null,null,null,null,null,null,null,null,null,null,null,null,null,null,null,null,null,null,null,0]
[null,null,null,null,null,null,null,null,null,null,null,null,null,null,null,null,null,null,null,null,null,null,null,null,null,null,null,null,null,null,null,null,null,null,null,0]
[{"$f":"ЕСЛИПУСТО!A108","v":0},null,null,null,null,null,null,null,null,null,null,null,null,null,null,null,null,null,null,null,null,null,null,null,null,null,null,null,null,null,null,null,null,null,null,0]
[null,null,null,null,null,null,null,null,null,null,null,null,null,null,null,null,null,null,null,null,null,null,null,null,null,null,null,null,null,null,null,null,null,null,null,0]
[{"$f":"ЕСЛИПУСТО!A110","v":0},null,null,null,null,null,null,null,null,null,null,null,null,null,null,null,null,null,null,null,null,null,null,null,null,null,null,null,null,null,null,null,null,null,null,0]
[null,null,null,null,null,null,null,null,null,null,null,null,null,null,null,null,null,null,null,null,null,null,null,null,null,null,null,null,null,null,null,null,null,null,null,0]
[{"$f":"ЕСЛИПУСТО!A112","v":0},null,null,null,null,null,null,null,null,null,null,null,null,null,null,null,null,null,null,null,null,null,null,null,null,null,null,null,null,null,null,null,null,null,null,0]
[null,null,null,null,null,null,null,null,null,null,null,null,null,null,null,null,null,null,null,null,null,null,null,null,null,null,null,null,null,null,null,null,null,null,null,0]
[{"$f":"ЕСЛИПУСТО!A114","v":0},null,null,null,null,null,null,null,null,null,null,null,null,null,null,null,null,null,null,null,null,null,null,null,null,null,null,null,null,null,null,null,null,null,null,0]
[null,null,null,null,null,null,null,null,null,null,null,null,null,null,null,null,null,null,null,null,null,null,null,null,null,null,null,null,null,null,null,null,null,null,null,0]
[{"$f":"ЕСЛИПУСТО!A116","v":0},null,null,null,null,null,null,null,null,null,null,null,null,null,null,null,null,null,null,null,null,null,null,null,null,null,null,null,null,null,null,null,null,null,null,0]
[null,null,null,null,null,null,null,null,null,null,null,null,null,null,null,null,null,null,null,null,null,null,null,null,null,null,null,null,null,null,null,null,null,null,null,0]
[{"$f":"ЕСЛИПУСТО!A118","v":0},null,null,null,null,null,null,null,null,null,null,null,null,null,null,null,null,null,null,null,null,null,null,null,null,null,null,null,null,null,null,null,null,null,null,0]
[null,null,null,null,null,null,null,null,null,null,null,null,null,null,null,null,null,null,null,null,null,null,null,null,null,null,null,null,null,null,null,null,null,null,null,0]
[{"$f":"ЕСЛИПУСТО!A120","v":0},null,null,null,null,null,null,null,null,null,null,null,null,null,null,null,null,null,null,null,null,null,null,null,null,null,null,null,null,null,null,null,null,null,null,0]
[null,null,null,null,null,null,null,null,null,null,null,null,null,null,null,null,null,null,null,null,null,null,null,null,null,null,null,null,null,null,null,null,null,null,null,0]
[{"$f":"ЕСЛИПУСТО!A122","v":0},null,null,null,null,null,null,null,null,null,null,null,null,null,null,null,null,null,null,null,null,null,null,null,null,null,null,null,null,null,null,null,null,null,null,0]
[null,null,null,null,null,null,null,null,null,null,null,null,null,null,null,null,null,null,null,null,null,null,null,null,null,null,null,null,null,null,null,null,null,null,null,0]
[{"$f":"ЕСЛИПУСТО!A124","v":0},null,null,null,null,null,null,null,null,null,null,null,null,null,null,null,null,null,null,null,null,null,null,null,null,null,null,null,null,null,null,null,null,null,null,0]
[null,null,null,null,null,null,null,null,null,null,null,null,null,null,null,null,null,null,null,null,null,null,null,null,null,null,null,null,null,null,null,null,null,null,null,0]
[{"$f":"ЕСЛИПУСТО!A126","v":0},null,null,null,null,null,null,null,null,null,null,null,null,null,null,null,null,null,null,null,null,null,null,null,null,null,null,null,null,null,null,null,null,null,null,0]
[null,null,null,null,null,null,null,null,null,null,null,null,null,null,null,null,null,null,null,null,null,null,null,null,null,null,null,null,null,null,null,null,null,null,null,0]
[{"$f":"ЕСЛИПУСТО!A128","v":0},null,null,null,null,null,null,null,null,null,null,null,null,null,null,null,null,null,null,null,null,null,null,null,null,null,null,null,null,null,null,null,null,null,null,0]
[null,null,null,null,null,null,null,null,null,null,null,null,null,null,null,null,null,null,null,null,null,null,null,null,null,null,null,null,null,null,null,null,null,null,null,0]
[{"$f":"ЕСЛИПУСТО!A130","v":0},null,null,null,null,null,null,null,null,null,null,null,null,null,null,null,null,null,null,null,null,null,null,null,null,null,null,null,null,null,null,null,null,null,null,0]
[null,null,null,null,null,null,null,null,null,null,null,null,null,null,null,null,null,null,null,null,null,null,null,null,null,null,null,null,null,null,null,null,null,null,null,0]
[{"$f":"ЕСЛИПУСТО!A132","v":0},null,null,null,null,null,null,null,null,null,null,null,null,null,null,null,null,null,null,null,null,null,null,null,null,null,null,null,null,null,null,null,null,null,null,0]
[null,null,null,null,null,null,null,null,null,null,null,null,null,null,null,null,null,null,null,null,null,null,null,null,null,null,null,null,null,null,null,null,null,null,null,0]
[null,null,null,null,null,null,null,null,null,null,null,null,null,null,null,null,null,null,null,null,null,null,null,null,null,null,null,null,null,null,null,null,null,null,null,null,4]